{"text_format":"1","workbook":"xlsx","n_sheets":8,"sheets":["EVALUATION","ACCUEIL","REFERENCES","PROJET","DETAIL","PARTICIPANTS","BUDGET","PARAM"],"not_rendered":{"charts":3,"images":2,"macros":1,"external_links":0,"defined_names":93,"comments":4,"pivot_tables":3},"unopened":[],"bounds":{"document_bytes":16777216,"sheet_cells":100000,"rows_first":2000,"rows_last":500,"rows_between":2000,"halvings":0,"cell_chars":16384,"cell_head_chars":4096},"cells_cut":0,"cells_raw":0,"read":"whole","date_system":"1900"}

{"sheet":"EVALUATION","index":0,"n_rows":120,"n_cols":30,"rows_kept":120,"cut":false,"hidden":true,"merged":[[119,5,119,9],[114,5,114,9],[115,5,115,9],[116,5,116,9],[117,5,117,9],[118,5,118,9],[109,5,109,9],[110,5,110,9],[111,5,111,9],[112,5,112,9],[113,5,113,9],[106,5,106,9],[107,5,107,9],[108,5,108,9],[14,1,14,11],[24,1,24,4],[24,8,24,11],[16,1,16,4],[16,8,16,11],[19,1,19,4],[19,8,19,11],[17,1,17,4],[18,1,18,4],[18,8,18,11],[17,8,17,11]]}
[null,null,null,null,null,null,null,null,null,null,null,"Unité d’Appui et de Recherche n° 2004 CNRS-UBM-UB"]
[]
[]
[]
[]
[]
[]
[null,{"$f":"PROJET_ACRONYME","v":0}]
[null,{"$f":"PROJET_TITRE","v":0}]
[]
[null,{"$f":"\"Appel \" & PROJET_APPEL & IF(NOT(ISBLANK(PROJET_NATURE)), \" (\" & PROJET_NATURE &\")\",\"\")","v":"Appel "}]
[]
[null,"Note finale :",null,null,null,null,null,null,"Financement retenu :"]
[null,"Commentaire final"]
[]
[]
[null,"Evaluateur 1",null,null,null,null,null,null,"Evaluateur 2"]
[]
[null,{"$f":"IF(ISBLANK(EVALUATEUR_1),\"\",VLOOKUP(EVALUATEUR_1,PARAM_EVALUATEUR[],5,FALSE))","v":""},null,null,null,null,null,null,{"$f":"IF(ISBLANK(EVALUATEUR_2),\"\",VLOOKUP(EVALUATEUR_2,PARAM_EVALUATEUR[],5,FALSE))","v":""}]
[null,{"$f":"IF(ISBLANK(EVALUATEUR_1),\"\",VLOOKUP(EVALUATEUR_1,PARAM_EVALUATEUR[],7,FALSE))","v":""},null,null,null,null,null,null,{"$f":"IF(ISBLANK(EVALUATEUR_2),\"\",VLOOKUP(EVALUATEUR_2,PARAM_EVALUATEUR[],7,FALSE))","v":""}]
[null,null,"Note moyenne calculee",{"$f":"$AC$70","v":""},null,null,null,null,null,"Note moyenne calculee",{"$f":"$AD$70","v":""}]
[null,null,"Evaluation",null,null,null,null,null,null,"Evaluation"]
[]
[null,{"$f":"\"Commentaire \" & EVALUATEUR_1","v":"Commentaire "},null,null,null,null,null,null,{"$f":"\"Commentaire \" & EVALUATEUR_2","v":"Commentaire "}]
[]
[]
[null,null,null,null,"Financement demandé",null,null,null,{"$f":"DEMANDE_BUDGETAIRE","v":0}]
[]
[]
[null,{"$f":"\"Financement proposé par \" & EVALUATEUR_1","v":"Financement proposé par "},null,null,null,null,null,null,{"$f":"\"Financement proposé par \" & EVALUATEUR_2","v":"Financement proposé par "}]
[]
[]
[null,"Critères d'évaluation",null,null,null,null,null,null,null,null,null,null,null,null,null,null,"APPEL",{"$f":"PROJET_APPEL","v":0}]
[null,null,null,null,null,null,null,null,null,null,null,null,null,null,null,null,"NATURE",{"$f":"PROJET_NATURE","v":0}]
[null,{"$f":"IF(ISBLANK(EVALUATEUR_1),\"\",EVALUATEUR_1)","v":""},null,null,null,null,null,null,{"$f":"IF(ISBLANK(EVALUATEUR_2),\"\",EVALUATEUR_2)","v":""}]
[null,null,null,null,null,null,null,null,null,null,null,null,null,null,null,null,null,"THEMATIQUE","THEMATIQUE","BLANC","BLANC","JEUNE_CHERCHEUR","JEUNE_CHERCHEUR","CASE ACTIVEE","CASE GAUCHE VIDE","CASE DROITE VIDE","SURBRILLANCE GAUCHE","SURBRILLANCE DROITE","NOTE E1","NOTE E2"]
[null,"Qualité et cible scientifique",null,null,null,null,null,null,null,null,null,null,null,null,null,null,null,"EMERGENCE","MATURATION","EMERGENCE","MATURATION","EMERGENCE","MATURATION"]
[]
[null,null,null,"Inscription dans les thématiques de l'appel",null,null,null,null,null,null,"Inscription dans les thématiques de l'appel",null,null,null,null,null,"Inscription dans les thématiques de l'appel",{"$f":"IF(AND($R$37=PROJET_NATURE,$R$36=PROJET_APPEL),TRUE,FALSE)","v":false},{"$f":"IF(AND($S$37=PROJET_NATURE,$S$36=PROJET_APPEL),TRUE,FALSE)","v":false},null,null,null,null,{"$f":"IF(OR($R39:$W39),TRUE,FALSE)","v":false},{"$f":"ISBLANK($E39)","v":true},{"$f":"ISBLANK($L39)","v":true},{"$f":"AND($X39,$Y39)","v":false},{"$f":"AND($X39,$Z39)","v":false},{"$f":"IF(OR(ISNA(VLOOKUP($E39,PARAM_NOTE[#Data],2,FALSE)),NOT($X39)),\"\",VLOOKUP($E39,PARAM_NOTE[#Data],2,FALSE))","v":""},{"$f":"IF(OR(ISNA(VLOOKUP($L39,PARAM_NOTE[#Data],2,FALSE)),NOT($X39)),\"\",VLOOKUP($L39,PARAM_NOTE[#Data],2,FALSE))","v":""}]
[]
[null,null,null,"Implication dans les arts, lettres…",null,null,null,null,null,null,"Implication dans les arts, lettres…",null,null,null,null,null,"Implication dans les arts, lettres…",null,null,{"$f":"IF(AND($T$37=PROJET_NATURE,$T$36=PROJET_APPEL),TRUE,FALSE)","v":false},{"$f":"IF(AND($U$37=PROJET_NATURE,$U$36=PROJET_APPEL),TRUE,FALSE)","v":false},null,null,{"$f":"IF(OR($R41:$W41),TRUE,FALSE)","v":false},{"$f":"ISBLANK($E41)","v":true},{"$f":"ISBLANK($L41)","v":true},{"$f":"AND($X41,$Y41)","v":false},{"$f":"AND($X41,$Z41)","v":false},{"$f":"IF(OR(ISNA(VLOOKUP($E41,PARAM_NOTE[#Data],2,FALSE)),NOT($X41)),\"\",VLOOKUP($E41,PARAM_NOTE[#Data],2,FALSE))","v":""},{"$f":"IF(OR(ISNA(VLOOKUP($L41,PARAM_NOTE[#Data],2,FALSE)),NOT($X41)),\"\",VLOOKUP($L41,PARAM_NOTE[#Data],2,FALSE))","v":""}]
[]
[null,null,null,"Qualité scientifique et méthodes",null,null,null,null,null,null,"Qualité scientifique et méthodes",null,null,null,null,null,"Qualité scientifique et méthodes",{"$f":"IF(AND($R$37=PROJET_NATURE,$R$36=PROJET_APPEL),TRUE,FALSE)","v":false},{"$f":"IF(AND($S$37=PROJET_NATURE,$S$36=PROJET_APPEL),TRUE,FALSE)","v":false},{"$f":"IF(AND($T$37=PROJET_NATURE,$T$36=PROJET_APPEL),TRUE,FALSE)","v":false},{"$f":"IF(AND($U$37=PROJET_NATURE,$U$36=PROJET_APPEL),TRUE,FALSE)","v":false},{"$f":"IF(AND($V$37=PROJET_NATURE,$V$36=PROJET_APPEL),TRUE,FALSE)","v":false},{"$f":"IF(AND($W$37=PROJET_NATURE,$W$36=PROJET_APPEL),TRUE,FALSE)","v":false},{"$f":"IF(OR($R43:$W43),TRUE,FALSE)","v":false},{"$f":"ISBLANK($E43)","v":true},{"$f":"ISBLANK($L43)","v":true},{"$f":"AND($X43,$Y43)","v":false},{"$f":"AND($X43,$Z43)","v":false},{"$f":"IF(OR(ISNA(VLOOKUP($E43,PARAM_NOTE[#Data],2,FALSE)),NOT($X43)),\"\",VLOOKUP($E43,PARAM_NOTE[#Data],2,FALSE))","v":""},{"$f":"IF(OR(ISNA(VLOOKUP($L43,PARAM_NOTE[#Data],2,FALSE)),NOT($X43)),\"\",VLOOKUP($L43,PARAM_NOTE[#Data],2,FALSE))","v":""}]
[]
[null,null,null,"Interdisciplinarité",null,null,null,null,null,null,"Interdisciplinarité",null,null,null,null,null,"Interdisciplinarité",{"$f":"IF(AND($R$37=PROJET_NATURE,$R$36=PROJET_APPEL),TRUE,FALSE)","v":false},{"$f":"IF(AND($S$37=PROJET_NATURE,$S$36=PROJET_APPEL),TRUE,FALSE)","v":false},{"$f":"IF(AND($T$37=PROJET_NATURE,$T$36=PROJET_APPEL),TRUE,FALSE)","v":false},{"$f":"IF(AND($U$37=PROJET_NATURE,$U$36=PROJET_APPEL),TRUE,FALSE)","v":false},{"$f":"IF(AND($V$37=PROJET_NATURE,$V$36=PROJET_APPEL),TRUE,FALSE)","v":false},{"$f":"IF(AND($W$37=PROJET_NATURE,$W$36=PROJET_APPEL),TRUE,FALSE)","v":false},{"$f":"IF(OR($R45:$W45),TRUE,FALSE)","v":false},{"$f":"ISBLANK($E45)","v":true},{"$f":"ISBLANK($L45)","v":true},{"$f":"AND($X45,$Y45)","v":false},{"$f":"AND($X45,$Z45)","v":false},{"$f":"IF(OR(ISNA(VLOOKUP($E45,PARAM_NOTE[#Data],2,FALSE)),NOT($X45)),\"\",VLOOKUP($E45,PARAM_NOTE[#Data],2,FALSE))","v":""},{"$f":"IF(OR(ISNA(VLOOKUP($L45,PARAM_NOTE[#Data],2,FALSE)),NOT($X45)),\"\",VLOOKUP($L45,PARAM_NOTE[#Data],2,FALSE))","v":""}]
[]
[null,"Organisation et mise en œuvre du projet"]
[]
[null,null,null,"Faisabilité",null,null,null,null,null,null,"Faisabilité",null,null,null,null,null,"Faisabilité",{"$f":"IF(AND($R$37=PROJET_NATURE,$R$36=PROJET_APPEL),TRUE,FALSE)","v":false},{"$f":"IF(AND($S$37=PROJET_NATURE,$S$36=PROJET_APPEL),TRUE,FALSE)","v":false},{"$f":"IF(AND($T$37=PROJET_NATURE,$T$36=PROJET_APPEL),TRUE,FALSE)","v":false},{"$f":"IF(AND($U$37=PROJET_NATURE,$U$36=PROJET_APPEL),TRUE,FALSE)","v":false},{"$f":"IF(AND($V$37=PROJET_NATURE,$V$36=PROJET_APPEL),TRUE,FALSE)","v":false},{"$f":"IF(AND($W$37=PROJET_NATURE,$W$36=PROJET_APPEL),TRUE,FALSE)","v":false},{"$f":"IF(OR($R49:$W49),TRUE,FALSE)","v":false},{"$f":"ISBLANK($E49)","v":true},{"$f":"ISBLANK($L49)","v":true},{"$f":"AND($X49,$Y49)","v":false},{"$f":"AND($X49,$Z49)","v":false},{"$f":"IF(OR(ISNA(VLOOKUP($E49,PARAM_NOTE[#Data],2,FALSE)),NOT($X49)),\"\",VLOOKUP($E49,PARAM_NOTE[#Data],2,FALSE))","v":""},{"$f":"IF(OR(ISNA(VLOOKUP($L49,PARAM_NOTE[#Data],2,FALSE)),NOT($X49)),\"\",VLOOKUP($L49,PARAM_NOTE[#Data],2,FALSE))","v":""}]
[]
[null,null,null,"Composition et la qualité de l’équipe du projet",null,null,null,null,null,null,"Composition et la qualité de l’équipe du projet",null,null,null,null,null,"Composition et la qualité de l’équipe du projet",{"$f":"IF(AND($R$37=PROJET_NATURE,$R$36=PROJET_APPEL),TRUE,FALSE)","v":false},{"$f":"IF(AND($S$37=PROJET_NATURE,$S$36=PROJET_APPEL),TRUE,FALSE)","v":false},{"$f":"IF(AND($T$37=PROJET_NATURE,$T$36=PROJET_APPEL),TRUE,FALSE)","v":false},{"$f":"IF(AND($U$37=PROJET_NATURE,$U$36=PROJET_APPEL),TRUE,FALSE)","v":false},null,null,{"$f":"IF(OR($R51:$W51),TRUE,FALSE)","v":false},{"$f":"ISBLANK($E51)","v":true},{"$f":"ISBLANK($L51)","v":true},{"$f":"AND($X51,$Y51)","v":false},{"$f":"AND($X51,$Z51)","v":false},{"$f":"IF(OR(ISNA(VLOOKUP($E51,PARAM_NOTE[#Data],2,FALSE)),NOT($X51)),\"\",VLOOKUP($E51,PARAM_NOTE[#Data],2,FALSE))","v":""},{"$f":"IF(OR(ISNA(VLOOKUP($L51,PARAM_NOTE[#Data],2,FALSE)),NOT($X51)),\"\",VLOOKUP($L51,PARAM_NOTE[#Data],2,FALSE))","v":""}]
[]
[null,null,null,"Gestion des données ",null,null,null,null,null,null,"Gestion des données ",null,null,null,null,null,"Gestion des données ",{"$f":"IF(AND($R$37=PROJET_NATURE,$R$36=PROJET_APPEL),TRUE,FALSE)","v":false},{"$f":"IF(AND($S$37=PROJET_NATURE,$S$36=PROJET_APPEL),TRUE,FALSE)","v":false},{"$f":"IF(AND($T$37=PROJET_NATURE,$T$36=PROJET_APPEL),TRUE,FALSE)","v":false},{"$f":"IF(AND($U$37=PROJET_NATURE,$U$36=PROJET_APPEL),TRUE,FALSE)","v":false},{"$f":"IF(AND($V$37=PROJET_NATURE,$V$36=PROJET_APPEL),TRUE,FALSE)","v":false},{"$f":"IF(AND($W$37=PROJET_NATURE,$W$36=PROJET_APPEL),TRUE,FALSE)","v":false},{"$f":"IF(OR($R53:$W53),TRUE,FALSE)","v":false},{"$f":"ISBLANK($E53)","v":true},{"$f":"ISBLANK($L53)","v":true},{"$f":"AND($X53,$Y53)","v":false},{"$f":"AND($X53,$Z53)","v":false},{"$f":"IF(OR(ISNA(VLOOKUP($E53,PARAM_NOTE[#Data],2,FALSE)),NOT($X53)),\"\",VLOOKUP($E53,PARAM_NOTE[#Data],2,FALSE))","v":""},{"$f":"IF(OR(ISNA(VLOOKUP($L53,PARAM_NOTE[#Data],2,FALSE)),NOT($X53)),\"\",VLOOKUP($L53,PARAM_NOTE[#Data],2,FALSE))","v":""}]
[]
[null,null,null,"Implication des plateformes",null,null,null,null,null,null,"Implication des plateformes",null,null,null,null,null,"Implication des plateformes",{"$f":"IF(AND($R$37=PROJET_NATURE,$R$36=PROJET_APPEL),TRUE,FALSE)","v":false},{"$f":"IF(AND($S$37=PROJET_NATURE,$S$36=PROJET_APPEL),TRUE,FALSE)","v":false},{"$f":"IF(AND($T$37=PROJET_NATURE,$T$36=PROJET_APPEL),TRUE,FALSE)","v":false},{"$f":"IF(AND($U$37=PROJET_NATURE,$U$36=PROJET_APPEL),TRUE,FALSE)","v":false},{"$f":"IF(AND($V$37=PROJET_NATURE,$V$36=PROJET_APPEL),TRUE,FALSE)","v":false},{"$f":"IF(AND($W$37=PROJET_NATURE,$W$36=PROJET_APPEL),TRUE,FALSE)","v":false},{"$f":"IF(OR($R55:$W55),TRUE,FALSE)","v":false},{"$f":"ISBLANK($E55)","v":true},{"$f":"ISBLANK($L55)","v":true},{"$f":"AND($X55,$Y55)","v":false},{"$f":"AND($X55,$Z55)","v":false},{"$f":"IF(OR(ISNA(VLOOKUP($E55,PARAM_NOTE[#Data],2,FALSE)),NOT($X55)),\"\",VLOOKUP($E55,PARAM_NOTE[#Data],2,FALSE))","v":""},{"$f":"IF(OR(ISNA(VLOOKUP($L55,PARAM_NOTE[#Data],2,FALSE)),NOT($X55)),\"\",VLOOKUP($L55,PARAM_NOTE[#Data],2,FALSE))","v":""}]
[]
[null,null,null,"Budget",null,null,null,null,null,null,"Budget",null,null,null,null,null,"Budget",{"$f":"IF(AND($R$37=PROJET_NATURE,$R$36=PROJET_APPEL),TRUE,FALSE)","v":false},{"$f":"IF(AND($S$37=PROJET_NATURE,$S$36=PROJET_APPEL),TRUE,FALSE)","v":false},{"$f":"IF(AND($T$37=PROJET_NATURE,$T$36=PROJET_APPEL),TRUE,FALSE)","v":false},{"$f":"IF(AND($U$37=PROJET_NATURE,$U$36=PROJET_APPEL),TRUE,FALSE)","v":false},{"$f":"IF(AND($V$37=PROJET_NATURE,$V$36=PROJET_APPEL),TRUE,FALSE)","v":false},{"$f":"IF(AND($W$37=PROJET_NATURE,$W$36=PROJET_APPEL),TRUE,FALSE)","v":false},{"$f":"IF(OR($R57:$W57),TRUE,FALSE)","v":false},{"$f":"ISBLANK($E57)","v":true},{"$f":"ISBLANK($L57)","v":true},{"$f":"AND($X57,$Y57)","v":false},{"$f":"AND($X57,$Z57)","v":false},{"$f":"IF(OR(ISNA(VLOOKUP($E57,PARAM_NOTE[#Data],2,FALSE)),NOT($X57)),\"\",VLOOKUP($E57,PARAM_NOTE[#Data],2,FALSE))","v":""},{"$f":"IF(OR(ISNA(VLOOKUP($L57,PARAM_NOTE[#Data],2,FALSE)),NOT($X57)),\"\",VLOOKUP($L57,PARAM_NOTE[#Data],2,FALSE))","v":""}]
[]
[null,"Impact et avantages du projet",null,null,null,null,null,null,"Impact et avantages du projet"]
[]
[null,null,null,"Dimension exploratoire",null,null,null,null,null,null,"Dimension exploratoire",null,null,null,null,null,"Dimension exploratoire",{"$f":"IF(AND($R$37=PROJET_NATURE,$R$36=PROJET_APPEL),TRUE,FALSE)","v":false},null,{"$f":"IF(AND($T$37=PROJET_NATURE,$T$36=PROJET_APPEL),TRUE,FALSE)","v":false},null,{"$f":"IF(AND($V$37=PROJET_NATURE,$V$36=PROJET_APPEL),TRUE,FALSE)","v":false},null,{"$f":"IF(OR($R61:$W61),TRUE,FALSE)","v":false},{"$f":"ISBLANK($E61)","v":true},{"$f":"ISBLANK($L61)","v":true},{"$f":"AND($X61,$Y61)","v":false},{"$f":"AND($X61,$Z61)","v":false},{"$f":"IF(OR(ISNA(VLOOKUP($E61,PARAM_NOTE[#Data],2,FALSE)),NOT($X61)),\"\",VLOOKUP($E61,PARAM_NOTE[#Data],2,FALSE))","v":""},{"$f":"IF(OR(ISNA(VLOOKUP($L61,PARAM_NOTE[#Data],2,FALSE)),NOT($X61)),\"\",VLOOKUP($L61,PARAM_NOTE[#Data],2,FALSE))","v":""}]
[]
[null,null,null,"Dimension structurante et préparatoire",null,null,null,null,null,null,"Dimension structurante et préparatoire",null,null,null,null,null,"Dimension structurante et préparatoire",null,{"$f":"IF(AND($S$37=PROJET_NATURE,$S$36=PROJET_APPEL),TRUE,FALSE)","v":false},null,{"$f":"IF(AND($U$37=PROJET_NATURE,$U$36=PROJET_APPEL),TRUE,FALSE)","v":false},null,{"$f":"IF(AND($W$37=PROJET_NATURE,$W$36=PROJET_APPEL),TRUE,FALSE)","v":false},{"$f":"IF(OR($R63:$W63),TRUE,FALSE)","v":false},{"$f":"ISBLANK($E63)","v":true},{"$f":"ISBLANK($L63)","v":true},{"$f":"AND($X63,$Y63)","v":false},{"$f":"AND($X63,$Z63)","v":false},{"$f":"IF(OR(ISNA(VLOOKUP($E63,PARAM_NOTE[#Data],2,FALSE)),NOT($X63)),\"\",VLOOKUP($E63,PARAM_NOTE[#Data],2,FALSE))","v":""},{"$f":"IF(OR(ISNA(VLOOKUP($L63,PARAM_NOTE[#Data],2,FALSE)),NOT($X63)),\"\",VLOOKUP($L63,PARAM_NOTE[#Data],2,FALSE))","v":""}]
[]
[null,null,null,"Inscription dans une trajectoire de recherche",null,null,null,null,null,null,"Inscription dans une trajectoire de recherche",null,null,null,null,null,"Inscription dans une trajectoire de recherche",null,null,null,null,{"$f":"IF(AND($V$37=PROJET_NATURE,$V$36=PROJET_APPEL),TRUE,FALSE)","v":false},{"$f":"IF(AND($W$37=PROJET_NATURE,$W$36=PROJET_APPEL),TRUE,FALSE)","v":false},{"$f":"IF(OR($R65:$W65),TRUE,FALSE)","v":false},{"$f":"ISBLANK($E65)","v":true},{"$f":"ISBLANK($L65)","v":true},{"$f":"AND($X65,$Y65)","v":false},{"$f":"AND($X65,$Z65)","v":false},{"$f":"IF(OR(ISNA(VLOOKUP($E65,PARAM_NOTE[#Data],2,FALSE)),NOT($X65)),\"\",VLOOKUP($E65,PARAM_NOTE[#Data],2,FALSE))","v":""},{"$f":"IF(OR(ISNA(VLOOKUP($L65,PARAM_NOTE[#Data],2,FALSE)),NOT($X65)),\"\",VLOOKUP($L65,PARAM_NOTE[#Data],2,FALSE))","v":""}]
[]
[null,null,null,"Devenir et envergure du projet",null,null,null,null,null,null,"Devenir et envergure du projet",null,null,null,null,null,"Devenir et envergure du projet",{"$f":"IF(AND($R$37=PROJET_NATURE,$R$36=PROJET_APPEL),TRUE,FALSE)","v":false},{"$f":"IF(AND($S$37=PROJET_NATURE,$S$36=PROJET_APPEL),TRUE,FALSE)","v":false},{"$f":"IF(AND($T$37=PROJET_NATURE,$T$36=PROJET_APPEL),TRUE,FALSE)","v":false},{"$f":"IF(AND($U$37=PROJET_NATURE,$U$36=PROJET_APPEL),TRUE,FALSE)","v":false},null,null,{"$f":"IF(OR($R67:$W67),TRUE,FALSE)","v":false},{"$f":"ISBLANK($E67)","v":true},{"$f":"ISBLANK($L67)","v":true},{"$f":"AND($X67,$Y67)","v":false},{"$f":"AND($X67,$Z67)","v":false},{"$f":"IF(OR(ISNA(VLOOKUP($E67,PARAM_NOTE[#Data],2,FALSE)),NOT($X67)),\"\",VLOOKUP($E67,PARAM_NOTE[#Data],2,FALSE))","v":""},{"$f":"IF(OR(ISNA(VLOOKUP($L67,PARAM_NOTE[#Data],2,FALSE)),NOT($X67)),\"\",VLOOKUP($L67,PARAM_NOTE[#Data],2,FALSE))","v":""}]
[]
[null,null,null,"Note moyenne calculee",{"$f":"$AC$70","v":""},null,null,null,null,null,"Note moyenne calculee",{"$f":"$AD$70","v":""},null,null,null,null,"Moyenne",null,null,null,null,null,null,null,null,null,null,null,{"$f":"IF(SUM($AC$39:$AC$67)>0,AVERAGE($AC$39:$AC$67),\"\")","v":""},{"$f":"IF(SUM($AD$39:$AD$67)>0,AVERAGE($AD$39:$AD$67),\"\")","v":""}]
[null,null,null,null,null,null,null,null,null,null,null,null,null,null,null,null,"Lettre associée",null,null,null,null,null,null,null,null,null,null,null,{"$f":"IF($AC$69<>\"\",VLOOKUP(AC$69,TAB_NOTATION_INVERSE[#Data],2,TRUE),\"\")","v":""},{"$f":"IF($AD$69<>\"\",VLOOKUP(AD$69,TAB_NOTATION_INVERSE[#Data],2,TRUE),\"\")","v":""}]
[]
[]
[]
[]
[]
[]
[]
[]
[]
[]
[]
[]
[]
[]
[]
[]
[]
[]
[]
[]
[]
[]
[]
[]
[]
[]
[]
[]
[]
[]
[]
[]
[]
[]
[]
[]
[null,null,null,null,null,"CARTOGRAPHIE DES EVALUATIONS",null,null,null,null,{"$f":"EVALUATEUR_1","v":0},{"$f":"EVALUATEUR_2","v":0}]
[null,null,null,null,null,"Inscription dans les thématiques de l'appel",null,null,null,null,{"$f":"$AC$39","v":""},{"$f":"$AD$39","v":""}]
[null,null,null,null,null,"Implication dans les arts, lettres…",null,null,null,null,{"$f":"$AC$41","v":""},{"$f":"$AD$41","v":""}]
[null,null,null,null,null,"Qualité scientifique et méthodes",null,null,null,null,{"$f":"$AC$43","v":""},{"$f":"$AD$43","v":""}]
[null,null,null,null,null,"Interdisciplinarité",null,null,null,null,{"$f":"$AC$45","v":""},{"$f":"$AD$45","v":""}]
[null,null,null,null,null,"Faisabilité",null,null,null,null,{"$f":"$AC$49","v":""},{"$f":"$AD$49","v":""}]
[null,null,null,null,null,"Composition et la qualité de l’équipe du projet",null,null,null,null,{"$f":"$AC$51","v":""},{"$f":"$AD$51","v":""}]
[null,null,null,null,null,"Gestion des données ",null,null,null,null,{"$f":"$AC$53","v":""},{"$f":"$AD$53","v":""}]
[null,null,null,null,null,"Implication des plateformes",null,null,null,null,{"$f":"$AC$55","v":""},{"$f":"$AD$55","v":""}]
[null,null,null,null,null,"Budget",null,null,null,null,{"$f":"$AC$57","v":""},{"$f":"$AD$57","v":""}]
[null,null,null,null,null,"Dimension exploratoire",null,null,null,null,{"$f":"$AC$61","v":""},{"$f":"$AD$61","v":""}]
[null,null,null,null,null,"Dimension structurante et préparatoire",null,null,null,null,{"$f":"$AC$63","v":""},{"$f":"$AD$63","v":""}]
[null,null,null,null,null,"Inscription dans une trajectoire de recherche",null,null,null,null,{"$f":"$AC$65","v":""},{"$f":"$AD$65","v":""}]
[null,null,null,null,null,"Devenir et envergure du projet",null,null,null,null,{"$f":"$AC$67","v":""},{"$f":"$AD$67","v":""}]

{"sheet":"ACCUEIL","index":1,"n_rows":35,"n_cols":3,"rows_kept":35,"cut":false,"hidden":false,"merged":[[26,0,26,5],[0,0,0,5],[10,0,10,5],[11,0,11,5],[15,0,15,5],[13,0,13,5]]}
[{"$f":"IF(NOT(OR(ISBLANK(PROJET_ACRONYME),ISBLANK(P1_NOM))), PROJET_ACRONYME& \"-\"& P1_NOM & \" (AAP 2023)\",\"\")","v":""}]
[]
[null,null,"Unité d’Appui et de Recherche n° 2004 CNRS-UBM-UB"]
[]
[]
[]
[]
[]
[]
[]
["Formulaire de réponse aux appels à projets 2023"]
["Maison des Sciences de l’Homme de Bordeaux (MSHBx)"]
[]
[{"$f":"\"Formulaire à transmettre en pièce jointe à mshbx-aap@services.cnrs.fr avec pour objet REPONSE AAP 2023 MSHBX : \" & IF(OR(ISBLANK(REFERENCES!$A$12),ISBLANK(REFERENCES!$C$25)),\"ACRONYME_PROJET-NOM_FAMILLE_PRINCIPAL_INVESTIGATEUR\",PROJET_ACRONYME & \"-\" & P1_NOM)&\" pour le 8 février 2023 à 13 h au plus tard.\"","v":"Formulaire à transmettre en pièce jointe à mshbx-aap@services.cnrs.fr avec pour objet REPONSE AAP 2023 MSHBX : ACRONYME_PROJET-NOM_FAMILLE_PRINCIPAL_INVESTIGATEUR pour le 8 février 2023 à 13 h au plus tard."}]
[]
["Pensez à nous faire parvenir les lettres d’engagement au plus tard sous huitaine après le dépôt du dossier. Si les dossiers dépassent 10 Mo, merci de veiller à les rendre accessibles via un site de dépôt (type « filesender »)."]
["Pour renseigner le formulaire"]
[]
["Les champs à renseigner obligatoirement apparaissent en jaune fluorescent :"]
[]
["Les champs optionnels se présentent sous ce format :"]
[]
["Vous pouvez passer de champ en champ en appuyant sur la touche [TABULATION]"]
[]
["Nom à donner à ce fichier :"]
["Merci de penser renommer le fichier de cette façon avant son envoi :"]
[{"$f":"IF(NOT(OR(ISBLANK(PROJET_ACRONYME),ISBLANK(P1_NOM))),RIGHT(TEXT(YEAR(NOW()),\"0000\"),2)& TEXT(MONTH(NOW()),\"00\")&TEXT(DAY(NOW()),\"00\")& \"-AAP23_MSHBx-\"& PROJET_ACRONYME& \"-\"& P1_NOM,\"\")","v":""}]
[]
[]
["Tableau de bord de la saisie"]
[null,"Onglet REFERENCES",{"$f":"IF(REFERENCES_COMPLET,\"Complet\",\"Incomplet\")","v":"Incomplet"}]
[null,"Onglet PROJET",{"$f":"IF(PROJET_COMPLET,\"Complet\",\"Incomplet\")","v":"Incomplet"}]
[null,"Onglet DETAIL",{"$f":"IF(DETAIL_COMPLET,\"Complet\",\"Incomplet\")","v":"Incomplet"}]
[null,"Onglet PARTICIPANTS",{"$f":"IF(PARTICIPANTS_COMPLET,\"Complet\",\"Incomplet\")","v":"Incomplet"}]
[null,"Onglet BUDGET",{"$f":"IF(BUDGET_COMPLET,\"Complet\",\"Incomplet\")","v":"Incomplet"}]

{"sheet":"REFERENCES","index":2,"n_rows":55,"n_cols":11,"rows_kept":55,"cut":false,"hidden":false,"merged":[[46,0,46,2],[44,3,44,4],[44,0,44,1],[37,0,37,4],[55,0,55,4],[30,2,30,4],[0,0,0,4],[6,0,6,4],[14,0,14,4],[8,0,8,4],[19,0,19,4],[28,0,28,2],[26,3,26,4],[26,0,26,1],[16,2,16,4],[32,2,32,4],[34,2,34,4],[48,2,48,4],[50,2,50,4],[52,2,52,4]]}
["Références du projet",null,null,null,null,null,null,null,"COMPLET ?",{"$f":"AND($J$4,$J$11,$J$24)","v":false},{"$f":"AND($J$4,$J$11,$J$24)","v":false}]
[]
["A quel appel répondez-vous ?",null,"Nature du projet ?"]
[null,null,null,null,null,null,null,null,"Références géné",{"$f":"AND($J$5:$J$7)","v":false}]
[null,null,null,null,null,null,null,null,"Appel",{"$f":"NOT(ISBLANK(PROJET_APPEL))","v":false}]
["Expliquez ce en quoi votre projet thématisé s'inscrit dans l'un des axes de la MSHBx ou l'une des thématiques de l'appel :",null,null,null,null,null,null,null,"Nature",{"$f":"OR(AND(OR(PROJET_APPEL=\"THEMATIQUE\",PROJET_APPEL=\"BLANC\"),NOT(ISBLANK(PROJET_NATURE))),PROJET_APPEL=\"JEUNE_CHERCHEUR\")","v":false}]
[null,null,null,null,null,null,null,null,"Inscription MSHBx",{"$f":"IF(PROJET_APPEL=\"THEMATIQUE\",NOT(ISBLANK(PROJET_LIEN_MSH)),TRUE)","v":true}]
[]
["Nom du projet et budget"]
[]
["Acronyme du projet",null,null,null,null,null,null,null,"Nom du projet",{"$f":"AND($J$12:$J$13)","v":false}]
[null,null,null,null,null,null,null,null,"Nom",{"$f":"NOT(ISBLANK(PROJET_ACRONYME))","v":false}]
[null,null,null,null,null,null,null,null,"Titre",{"$f":"NOT(ISBLANK(PROJET_TITRE))","v":false}]
["Titre du projet"]
[]
[]
["Budget total",null,"Financement demandé (calculé à partir de l'onglet \"Budget\")"]
[{"$f":"PROJET_BUDGET","v":0},null,null,{"$f":"DEMANDE_BUDGETAIRE","v":0}]
[]
["Projet porté par"]
[]
["Porteuse ou porteur n° 1"]
[]
["Prénom",null,"Nom",null,"Genre",null,null,null,"Porteurs",{"$f":"AND($J$25,IF($J$26,$J$27,TRUE),IF($J$42,$J$43,TRUE))","v":false}]
[null,null,null,null,null,null,null,null,"Au moins 1 porteur",{"$f":"NOT(ISBLANK(P1_NOM))","v":false}]
["Statut ",null,null,"Discipline",null,null,null,null,"Saisie P1 commencée",{"$f":"NOT(AND(ISBLANK(P1_PRENOM),ISBLANK(P1_NOM),ISBLANK(P1_GENRE),ISBLANK(P1_STATUT),ISBLANK(P1_DISCIPLINE),ISBLANK(P1_EMPLOYEUR),ISBLANK(P1_CODE_UNITE),ISBLANK(P1_MAIL)))","v":false}]
[null,null,null,null,null,null,null,null,"Saisie P1 complète",{"$f":"NOT(OR(ISBLANK(P1_PRENOM),ISBLANK(P1_NOM),ISBLANK(P1_GENRE),ISBLANK(P1_STATUT),ISBLANK(P1_DISCIPLINE),ISBLANK(P1_EMPLOYEUR),ISBLANK(P1_CODE_UNITE),ISBLANK(P1_MAIL)))","v":false}]
["Etablissement employeur"]
[]
["Code unité ou service d'affectation",null,"Nom de l'unité ou du service"]
[null,null,{"$f":"IF(NOT(ISBLANK(P1_CODE_UNITE)),VLOOKUP(P1_CODE_UNITE,PARAM!$G$1:$H$34,2,TRUE),\"\")","v":""}]
[null,null,"Tutelles de l'unité ou du service"]
[null,null,{"$f":"IF(NOT(ISBLANK(P1_CODE_UNITE)),VLOOKUP(P1_CODE_UNITE,PARAM!$G$1:$I$34,3,TRUE),\"\")","v":""}]
["Téléphone",null,"Mèl"]
[]
[]
["Commentaire libre"]
[]
[]
["Porteuse ou porteur n° 2"]
[]
["Prénom",null,"Nom",null,"Genre",null,null,null,"Saisie P2 commencée",{"$f":"NOT(AND(ISBLANK(P2_PRENOM),ISBLANK(P2_NOM),ISBLANK(P2_GENRE),ISBLANK(P2_STATUT),ISBLANK(P2_DISCIPLINE),ISBLANK(P2_EMPLOYEUR),ISBLANK(P2_CODE_UNITE),ISBLANK(P2_MAIL)))","v":false}]
[null,null,null,null,null,null,null,null,"Saisie P2 complète",{"$f":"NOT(OR(ISBLANK(P2_PRENOM),ISBLANK(P2_NOM),ISBLANK(P2_GENRE),ISBLANK(P2_STATUT),ISBLANK(P2_DISCIPLINE),ISBLANK(P2_EMPLOYEUR),ISBLANK(P2_CODE_UNITE),ISBLANK(P2_MAIL)))","v":false}]
["Statut ",null,null,"Discipline"]
[]
["Etablissement employeur"]
[]
["Code unité ou service d'affectation",null,"Nom de l'unité ou du service"]
[null,null,{"$f":"IF(NOT(ISBLANK(P2_CODE_UNITE)),VLOOKUP(P2_CODE_UNITE,PARAM!$G$1:$H$34,2,TRUE),\"\")","v":""}]
[null,null,"Tutelles de l'unité ou du service"]
[null,null,{"$f":"IF(NOT(ISBLANK(P2_CODE_UNITE)),VLOOKUP(P2_CODE_UNITE,PARAM!$G$1:$I$34,3,TRUE),\"\")","v":""}]
["Téléphone",null,"Mèl"]
[]
[]
["Commentaire libre"]

{"sheet":"PROJET","index":3,"n_rows":18,"n_cols":10,"rows_kept":18,"cut":false,"hidden":false,"merged":[[12,1,12,2],[14,1,14,2],[17,0,17,4],[18,0,18,4],[0,0,0,4],[4,0,4,4],[6,1,6,2],[8,1,8,2],[10,1,10,2]]}
["Présentation générale",null,null,null,null,null,null,null,"COMPLET ?",{"$f":"AND($J$3,$J$7,$J$17)","v":false}]
[]
["Résumé du projet",null,null,null,null,null,null,null,"Résumé du projet",{"$f":"NOT(ISBLANK(PROJET_RESUME))","v":false}]
["(2 000 signes maximum, espaces compris. Ce résumé pourra servir à la communication du projet.)"]
[]
[]
["Mots clés",null,null,null,null,null,null,null,"Mots clés",{"$f":"NOT(ISBLANK(MOT_CLE_1))","v":false}]
[]
[]
[]
[]
[]
[]
[]
[]
[]
["Activités en cours ou achevées",null,null,null,null,null,null,null,"Activités",{"$f":"NOT(ISBLANK(PROJET_EN_COURS))","v":false}]
["Le cas échéant, lister les activités scientifiques en cours ou achevées en lien avec le projet déposé (notamment pour les projets de type « MATURATION »)"]

{"sheet":"DETAIL","index":4,"n_rows":3,"n_cols":10,"rows_kept":3,"cut":false,"hidden":false,"merged":[[0,0,0,4],[3,0,3,4]]}
["Présentation détaillée",null,null,null,null,null,null,null,"DETAIL COMPLET ?",{"$f":"J3","v":false}]
[]
["Présentation détaillée (10 000 signes au plus, espaces compris).",null,null,null,null,null,null,null,"Détail",{"$f":"NOT(ISBLANK(PROJET_DETAIL))","v":false}]

{"sheet":"PARTICIPANTS","index":5,"n_rows":31,"n_cols":16,"rows_kept":31,"cut":false,"hidden":false,"merged":[[0,0,0,7],[16,0,16,7]]}
["PARTICIPANTS ACADEMIQUES",null,null,null,null,null,null,null,null,null,null,"PARTICIPANTS COMPLET ?",{"$f":"M3","v":false}]
[]
["Il s’agit d’identifier ici les acteurs clés engagés dans le projet ou pressentis pour l’être.",null,null,null,null,null,null,null,null,null,null,"Académiques",{"$f":"AND($M$4,$P$5:$P$14)","v":false}]
["Prénom","Nom","Discipline(s)","Statut du participant","Code Unité","Nom unité","Confirmé ?",null,null,null,null,"Saisie minimale",{"$f":"NOT(ISBLANK($B$5))","v":false}]
[null,null,null,null,null,null,null,null,null,null,null,"Ligne commencée",{"$f":"NOT(AND(ISBLANK(TAB_PARTICIPANT_ACADEMIQUE[[#This Row],[Prénom]]),ISBLANK(TAB_PARTICIPANT_ACADEMIQUE[[#This Row],[Nom]]),ISBLANK(TAB_PARTICIPANT_ACADEMIQUE[[#This Row],[Discipline(s)]]),ISBLANK(TAB_PARTICIPANT_ACADEMIQUE[[#This Row],[Statut du participant]])))","v":false},"Ligne terminée",{"$f":"NOT(OR(ISBLANK(TAB_PARTICIPANT_ACADEMIQUE[[#This Row],[Prénom]]),ISBLANK(TAB_PARTICIPANT_ACADEMIQUE[[#This Row],[Nom]]),ISBLANK(TAB_PARTICIPANT_ACADEMIQUE[[#This Row],[Discipline(s)]]),ISBLANK(TAB_PARTICIPANT_ACADEMIQUE[[#This Row],[Statut du participant]])))","v":false},{"$f":"IF($M5,$O5,TRUE)","v":true}]
[null,null,null,null,null,null,null,null,null,null,null,"Ligne commencée",{"$f":"NOT(AND(ISBLANK(TAB_PARTICIPANT_ACADEMIQUE[[#This Row],[Prénom]]),ISBLANK(TAB_PARTICIPANT_ACADEMIQUE[[#This Row],[Nom]]),ISBLANK(TAB_PARTICIPANT_ACADEMIQUE[[#This Row],[Discipline(s)]]),ISBLANK(TAB_PARTICIPANT_ACADEMIQUE[[#This Row],[Statut du participant]])))","v":false},"Ligne terminée",{"$f":"NOT(OR(ISBLANK(TAB_PARTICIPANT_ACADEMIQUE[[#This Row],[Prénom]]),ISBLANK(TAB_PARTICIPANT_ACADEMIQUE[[#This Row],[Nom]]),ISBLANK(TAB_PARTICIPANT_ACADEMIQUE[[#This Row],[Discipline(s)]]),ISBLANK(TAB_PARTICIPANT_ACADEMIQUE[[#This Row],[Statut du participant]])))","v":false},{"$f":"IF($M6,$O6,TRUE)","v":true}]
[null,null,null,null,null,null,null,null,null,null,null,"Ligne commencée",{"$f":"NOT(AND(ISBLANK(TAB_PARTICIPANT_ACADEMIQUE[[#This Row],[Prénom]]),ISBLANK(TAB_PARTICIPANT_ACADEMIQUE[[#This Row],[Nom]]),ISBLANK(TAB_PARTICIPANT_ACADEMIQUE[[#This Row],[Discipline(s)]]),ISBLANK(TAB_PARTICIPANT_ACADEMIQUE[[#This Row],[Statut du participant]])))","v":false},"Ligne terminée",{"$f":"NOT(OR(ISBLANK(TAB_PARTICIPANT_ACADEMIQUE[[#This Row],[Prénom]]),ISBLANK(TAB_PARTICIPANT_ACADEMIQUE[[#This Row],[Nom]]),ISBLANK(TAB_PARTICIPANT_ACADEMIQUE[[#This Row],[Discipline(s)]]),ISBLANK(TAB_PARTICIPANT_ACADEMIQUE[[#This Row],[Statut du participant]])))","v":false},true]
[null,null,null,null,null,null,null,null,null,null,null,"Ligne commencée",{"$f":"NOT(AND(ISBLANK(TAB_PARTICIPANT_ACADEMIQUE[[#This Row],[Prénom]]),ISBLANK(TAB_PARTICIPANT_ACADEMIQUE[[#This Row],[Nom]]),ISBLANK(TAB_PARTICIPANT_ACADEMIQUE[[#This Row],[Discipline(s)]]),ISBLANK(TAB_PARTICIPANT_ACADEMIQUE[[#This Row],[Statut du participant]])))","v":false},"Ligne terminée",{"$f":"NOT(OR(ISBLANK(TAB_PARTICIPANT_ACADEMIQUE[[#This Row],[Prénom]]),ISBLANK(TAB_PARTICIPANT_ACADEMIQUE[[#This Row],[Nom]]),ISBLANK(TAB_PARTICIPANT_ACADEMIQUE[[#This Row],[Discipline(s)]]),ISBLANK(TAB_PARTICIPANT_ACADEMIQUE[[#This Row],[Statut du participant]])))","v":false},true]
[null,null,null,null,null,null,null,null,null,null,null,"Ligne commencée",{"$f":"NOT(AND(ISBLANK(TAB_PARTICIPANT_ACADEMIQUE[[#This Row],[Prénom]]),ISBLANK(TAB_PARTICIPANT_ACADEMIQUE[[#This Row],[Nom]]),ISBLANK(TAB_PARTICIPANT_ACADEMIQUE[[#This Row],[Discipline(s)]]),ISBLANK(TAB_PARTICIPANT_ACADEMIQUE[[#This Row],[Statut du participant]])))","v":false},"Ligne terminée",{"$f":"NOT(OR(ISBLANK(TAB_PARTICIPANT_ACADEMIQUE[[#This Row],[Prénom]]),ISBLANK(TAB_PARTICIPANT_ACADEMIQUE[[#This Row],[Nom]]),ISBLANK(TAB_PARTICIPANT_ACADEMIQUE[[#This Row],[Discipline(s)]]),ISBLANK(TAB_PARTICIPANT_ACADEMIQUE[[#This Row],[Statut du participant]])))","v":false},true]
[null,null,null,null,null,null,null,null,null,null,null,"Ligne commencée",{"$f":"NOT(AND(ISBLANK(TAB_PARTICIPANT_ACADEMIQUE[[#This Row],[Prénom]]),ISBLANK(TAB_PARTICIPANT_ACADEMIQUE[[#This Row],[Nom]]),ISBLANK(TAB_PARTICIPANT_ACADEMIQUE[[#This Row],[Discipline(s)]]),ISBLANK(TAB_PARTICIPANT_ACADEMIQUE[[#This Row],[Statut du participant]])))","v":false},"Ligne terminée",{"$f":"NOT(OR(ISBLANK(TAB_PARTICIPANT_ACADEMIQUE[[#This Row],[Prénom]]),ISBLANK(TAB_PARTICIPANT_ACADEMIQUE[[#This Row],[Nom]]),ISBLANK(TAB_PARTICIPANT_ACADEMIQUE[[#This Row],[Discipline(s)]]),ISBLANK(TAB_PARTICIPANT_ACADEMIQUE[[#This Row],[Statut du participant]])))","v":false},true]
[null,null,null,null,null,null,null,null,null,null,null,"Ligne commencée",{"$f":"NOT(AND(ISBLANK(TAB_PARTICIPANT_ACADEMIQUE[[#This Row],[Prénom]]),ISBLANK(TAB_PARTICIPANT_ACADEMIQUE[[#This Row],[Nom]]),ISBLANK(TAB_PARTICIPANT_ACADEMIQUE[[#This Row],[Discipline(s)]]),ISBLANK(TAB_PARTICIPANT_ACADEMIQUE[[#This Row],[Statut du participant]])))","v":false},"Ligne terminée",{"$f":"NOT(OR(ISBLANK(TAB_PARTICIPANT_ACADEMIQUE[[#This Row],[Prénom]]),ISBLANK(TAB_PARTICIPANT_ACADEMIQUE[[#This Row],[Nom]]),ISBLANK(TAB_PARTICIPANT_ACADEMIQUE[[#This Row],[Discipline(s)]]),ISBLANK(TAB_PARTICIPANT_ACADEMIQUE[[#This Row],[Statut du participant]])))","v":false},true]
[null,null,null,null,null,null,null,null,null,null,null,"Ligne commencée",{"$f":"NOT(AND(ISBLANK(TAB_PARTICIPANT_ACADEMIQUE[[#This Row],[Prénom]]),ISBLANK(TAB_PARTICIPANT_ACADEMIQUE[[#This Row],[Nom]]),ISBLANK(TAB_PARTICIPANT_ACADEMIQUE[[#This Row],[Discipline(s)]]),ISBLANK(TAB_PARTICIPANT_ACADEMIQUE[[#This Row],[Statut du participant]])))","v":false},"Ligne terminée",{"$f":"NOT(OR(ISBLANK(TAB_PARTICIPANT_ACADEMIQUE[[#This Row],[Prénom]]),ISBLANK(TAB_PARTICIPANT_ACADEMIQUE[[#This Row],[Nom]]),ISBLANK(TAB_PARTICIPANT_ACADEMIQUE[[#This Row],[Discipline(s)]]),ISBLANK(TAB_PARTICIPANT_ACADEMIQUE[[#This Row],[Statut du participant]])))","v":false},true]
[null,null,null,null,null,null,null,null,null,null,null,"Ligne commencée",{"$f":"NOT(AND(ISBLANK(TAB_PARTICIPANT_ACADEMIQUE[[#This Row],[Prénom]]),ISBLANK(TAB_PARTICIPANT_ACADEMIQUE[[#This Row],[Nom]]),ISBLANK(TAB_PARTICIPANT_ACADEMIQUE[[#This Row],[Discipline(s)]]),ISBLANK(TAB_PARTICIPANT_ACADEMIQUE[[#This Row],[Statut du participant]])))","v":false},"Ligne terminée",{"$f":"NOT(OR(ISBLANK(TAB_PARTICIPANT_ACADEMIQUE[[#This Row],[Prénom]]),ISBLANK(TAB_PARTICIPANT_ACADEMIQUE[[#This Row],[Nom]]),ISBLANK(TAB_PARTICIPANT_ACADEMIQUE[[#This Row],[Discipline(s)]]),ISBLANK(TAB_PARTICIPANT_ACADEMIQUE[[#This Row],[Statut du participant]])))","v":false},true]
[null,null,null,null,null,null,null,null,null,null,null,"Ligne commencée",{"$f":"NOT(AND(ISBLANK(TAB_PARTICIPANT_ACADEMIQUE[[#This Row],[Prénom]]),ISBLANK(TAB_PARTICIPANT_ACADEMIQUE[[#This Row],[Nom]]),ISBLANK(TAB_PARTICIPANT_ACADEMIQUE[[#This Row],[Discipline(s)]]),ISBLANK(TAB_PARTICIPANT_ACADEMIQUE[[#This Row],[Statut du participant]])))","v":false},"Ligne terminée",{"$f":"NOT(OR(ISBLANK(TAB_PARTICIPANT_ACADEMIQUE[[#This Row],[Prénom]]),ISBLANK(TAB_PARTICIPANT_ACADEMIQUE[[#This Row],[Nom]]),ISBLANK(TAB_PARTICIPANT_ACADEMIQUE[[#This Row],[Discipline(s)]]),ISBLANK(TAB_PARTICIPANT_ACADEMIQUE[[#This Row],[Statut du participant]])))","v":false},true]
["Total",{"$f":"SUBTOTAL(103,TAB_PARTICIPANT_ACADEMIQUE[Nom])","v":0}]
[]
["PARTICIPANTS NON ACADEMIQUES"]
[]
["Il s’agit d’identifier ici les acteurs clés engagés dans le projet ou pressentis pour l’être."]
["Prénom","Nom","Fonction et domaine d'expertise","Statut du participant","Type d'organisation","Nom de l'organisation","Domaine de l'organisation","Confirmé ?",null,null,null,"Participants",{"$f":"AND($P$21:$P$30)","v":true}]
[null,null,null,null,null,null,null,null,null,null,null,"Ligne commencée",{"$f":"NOT(AND(ISBLANK(TAB_PARTICIPANT_AUTRE[[#This Row],[Prénom]]),ISBLANK(TAB_PARTICIPANT_AUTRE[[#This Row],[Nom]]),ISBLANK(TAB_PARTICIPANT_AUTRE[[#This Row],[Fonction et domaine d''expertise]]),ISBLANK(TAB_PARTICIPANT_AUTRE[[#This Row],[Statut du participant]])))","v":false},"Ligne terminée",{"$f":"NOT(OR(ISBLANK(TAB_PARTICIPANT_AUTRE[[#This Row],[Prénom]]),ISBLANK(TAB_PARTICIPANT_AUTRE[[#This Row],[Nom]]),ISBLANK(TAB_PARTICIPANT_AUTRE[[#This Row],[Fonction et domaine d''expertise]]),ISBLANK(TAB_PARTICIPANT_AUTRE[[#This Row],[Statut du participant]])))","v":false},{"$f":"IF($M21,$O21,TRUE)","v":true}]
[null,null,null,null,null,null,null,null,null,null,null,"Ligne commencée",{"$f":"NOT(AND(ISBLANK(TAB_PARTICIPANT_AUTRE[[#This Row],[Prénom]]),ISBLANK(TAB_PARTICIPANT_AUTRE[[#This Row],[Nom]]),ISBLANK(TAB_PARTICIPANT_AUTRE[[#This Row],[Fonction et domaine d''expertise]]),ISBLANK(TAB_PARTICIPANT_AUTRE[[#This Row],[Statut du participant]])))","v":false},"Ligne terminée",{"$f":"NOT(OR(ISBLANK(TAB_PARTICIPANT_AUTRE[[#This Row],[Prénom]]),ISBLANK(TAB_PARTICIPANT_AUTRE[[#This Row],[Nom]]),ISBLANK(TAB_PARTICIPANT_AUTRE[[#This Row],[Fonction et domaine d''expertise]]),ISBLANK(TAB_PARTICIPANT_AUTRE[[#This Row],[Statut du participant]])))","v":false},{"$f":"IF($M22,$O22,TRUE)","v":true}]
[null,null,null,null,null,null,null,null,null,null,null,"Ligne commencée",{"$f":"NOT(AND(ISBLANK(TAB_PARTICIPANT_AUTRE[[#This Row],[Prénom]]),ISBLANK(TAB_PARTICIPANT_AUTRE[[#This Row],[Nom]]),ISBLANK(TAB_PARTICIPANT_AUTRE[[#This Row],[Fonction et domaine d''expertise]]),ISBLANK(TAB_PARTICIPANT_AUTRE[[#This Row],[Statut du participant]])))","v":false},"Ligne terminée",{"$f":"NOT(OR(ISBLANK(TAB_PARTICIPANT_AUTRE[[#This Row],[Prénom]]),ISBLANK(TAB_PARTICIPANT_AUTRE[[#This Row],[Nom]]),ISBLANK(TAB_PARTICIPANT_AUTRE[[#This Row],[Fonction et domaine d''expertise]]),ISBLANK(TAB_PARTICIPANT_AUTRE[[#This Row],[Statut du participant]])))","v":false},true]
[null,null,null,null,null,null,null,null,null,null,null,"Ligne commencée",{"$f":"NOT(AND(ISBLANK(TAB_PARTICIPANT_AUTRE[[#This Row],[Prénom]]),ISBLANK(TAB_PARTICIPANT_AUTRE[[#This Row],[Nom]]),ISBLANK(TAB_PARTICIPANT_AUTRE[[#This Row],[Fonction et domaine d''expertise]]),ISBLANK(TAB_PARTICIPANT_AUTRE[[#This Row],[Statut du participant]])))","v":false},"Ligne terminée",{"$f":"NOT(OR(ISBLANK(TAB_PARTICIPANT_AUTRE[[#This Row],[Prénom]]),ISBLANK(TAB_PARTICIPANT_AUTRE[[#This Row],[Nom]]),ISBLANK(TAB_PARTICIPANT_AUTRE[[#This Row],[Fonction et domaine d''expertise]]),ISBLANK(TAB_PARTICIPANT_AUTRE[[#This Row],[Statut du participant]])))","v":false},true]
[null,null,null,null,null,null,null,null,null,null,null,"Ligne commencée",{"$f":"NOT(AND(ISBLANK(TAB_PARTICIPANT_AUTRE[[#This Row],[Prénom]]),ISBLANK(TAB_PARTICIPANT_AUTRE[[#This Row],[Nom]]),ISBLANK(TAB_PARTICIPANT_AUTRE[[#This Row],[Fonction et domaine d''expertise]]),ISBLANK(TAB_PARTICIPANT_AUTRE[[#This Row],[Statut du participant]])))","v":false},"Ligne terminée",{"$f":"NOT(OR(ISBLANK(TAB_PARTICIPANT_AUTRE[[#This Row],[Prénom]]),ISBLANK(TAB_PARTICIPANT_AUTRE[[#This Row],[Nom]]),ISBLANK(TAB_PARTICIPANT_AUTRE[[#This Row],[Fonction et domaine d''expertise]]),ISBLANK(TAB_PARTICIPANT_AUTRE[[#This Row],[Statut du participant]])))","v":false},true]
[null,null,null,null,null,null,null,null,null,null,null,"Ligne commencée",{"$f":"NOT(AND(ISBLANK(TAB_PARTICIPANT_AUTRE[[#This Row],[Prénom]]),ISBLANK(TAB_PARTICIPANT_AUTRE[[#This Row],[Nom]]),ISBLANK(TAB_PARTICIPANT_AUTRE[[#This Row],[Fonction et domaine d''expertise]]),ISBLANK(TAB_PARTICIPANT_AUTRE[[#This Row],[Statut du participant]])))","v":false},"Ligne terminée",{"$f":"NOT(OR(ISBLANK(TAB_PARTICIPANT_AUTRE[[#This Row],[Prénom]]),ISBLANK(TAB_PARTICIPANT_AUTRE[[#This Row],[Nom]]),ISBLANK(TAB_PARTICIPANT_AUTRE[[#This Row],[Fonction et domaine d''expertise]]),ISBLANK(TAB_PARTICIPANT_AUTRE[[#This Row],[Statut du participant]])))","v":false},true]
[null,null,null,null,null,null,null,null,null,null,null,"Ligne commencée",{"$f":"NOT(AND(ISBLANK(TAB_PARTICIPANT_AUTRE[[#This Row],[Prénom]]),ISBLANK(TAB_PARTICIPANT_AUTRE[[#This Row],[Nom]]),ISBLANK(TAB_PARTICIPANT_AUTRE[[#This Row],[Fonction et domaine d''expertise]]),ISBLANK(TAB_PARTICIPANT_AUTRE[[#This Row],[Statut du participant]])))","v":false},"Ligne terminée",{"$f":"NOT(OR(ISBLANK(TAB_PARTICIPANT_AUTRE[[#This Row],[Prénom]]),ISBLANK(TAB_PARTICIPANT_AUTRE[[#This Row],[Nom]]),ISBLANK(TAB_PARTICIPANT_AUTRE[[#This Row],[Fonction et domaine d''expertise]]),ISBLANK(TAB_PARTICIPANT_AUTRE[[#This Row],[Statut du participant]])))","v":false},true]
[null,null,null,null,null,null,null,null,null,null,null,"Ligne commencée",{"$f":"NOT(AND(ISBLANK(TAB_PARTICIPANT_AUTRE[[#This Row],[Prénom]]),ISBLANK(TAB_PARTICIPANT_AUTRE[[#This Row],[Nom]]),ISBLANK(TAB_PARTICIPANT_AUTRE[[#This Row],[Fonction et domaine d''expertise]]),ISBLANK(TAB_PARTICIPANT_AUTRE[[#This Row],[Statut du participant]])))","v":false},"Ligne terminée",{"$f":"NOT(OR(ISBLANK(TAB_PARTICIPANT_AUTRE[[#This Row],[Prénom]]),ISBLANK(TAB_PARTICIPANT_AUTRE[[#This Row],[Nom]]),ISBLANK(TAB_PARTICIPANT_AUTRE[[#This Row],[Fonction et domaine d''expertise]]),ISBLANK(TAB_PARTICIPANT_AUTRE[[#This Row],[Statut du participant]])))","v":false},true]
[null,null,null,null,null,null,null,null,null,null,null,"Ligne commencée",{"$f":"NOT(AND(ISBLANK(TAB_PARTICIPANT_AUTRE[[#This Row],[Prénom]]),ISBLANK(TAB_PARTICIPANT_AUTRE[[#This Row],[Nom]]),ISBLANK(TAB_PARTICIPANT_AUTRE[[#This Row],[Fonction et domaine d''expertise]]),ISBLANK(TAB_PARTICIPANT_AUTRE[[#This Row],[Statut du participant]])))","v":false},"Ligne terminée",{"$f":"NOT(OR(ISBLANK(TAB_PARTICIPANT_AUTRE[[#This Row],[Prénom]]),ISBLANK(TAB_PARTICIPANT_AUTRE[[#This Row],[Nom]]),ISBLANK(TAB_PARTICIPANT_AUTRE[[#This Row],[Fonction et domaine d''expertise]]),ISBLANK(TAB_PARTICIPANT_AUTRE[[#This Row],[Statut du participant]])))","v":false},true]
[null,null,null,null,null,null,null,null,null,null,null,"Ligne commencée",{"$f":"NOT(AND(ISBLANK(TAB_PARTICIPANT_AUTRE[[#This Row],[Prénom]]),ISBLANK(TAB_PARTICIPANT_AUTRE[[#This Row],[Nom]]),ISBLANK(TAB_PARTICIPANT_AUTRE[[#This Row],[Fonction et domaine d''expertise]]),ISBLANK(TAB_PARTICIPANT_AUTRE[[#This Row],[Statut du participant]])))","v":false},"Ligne terminée",{"$f":"NOT(OR(ISBLANK(TAB_PARTICIPANT_AUTRE[[#This Row],[Prénom]]),ISBLANK(TAB_PARTICIPANT_AUTRE[[#This Row],[Nom]]),ISBLANK(TAB_PARTICIPANT_AUTRE[[#This Row],[Fonction et domaine d''expertise]]),ISBLANK(TAB_PARTICIPANT_AUTRE[[#This Row],[Statut du participant]])))","v":false},true]
["Total",{"$f":"SUBTOTAL(103,TAB_PARTICIPANT_AUTRE[Nom])","v":0}]

{"sheet":"BUDGET","index":6,"n_rows":102,"n_cols":57,"rows_kept":102,"cut":false,"hidden":false,"merged":[[0,0,0,6]]}
["PARTENAIRES CO-FINANCEURS",null,null,null,null,null,null,null,null,null,null,null,null,null,null,null,null,null,null,null,null,null,null,null,null,null,null,null,null,null,null,null,null,null,null,null,null,null,null,null,null,null,null,null,null,null,null,null,null,null,null,null,"BUDGET COMPLET ?",{"$f":"AND($BB$7,$BB$30,$BB$31)","v":false},{"$f":"AND($BB$7,$BB$30,$BB$31)","v":false}]
[]
["Ajoutez ici les différents partenaires co-financeurs du projet (ou aucun si vous ne disposez pas de cofinancement)."]
["Si un partenaire est géré par plusieurs établissements, il pourra figurer sur plusieurs lignes (dans la mesure où vous bénéfiecirez de fonds gérés par ces différents établissements de gestion)"]
["Nom du partenairee co-financeur","Acronyme du partenaire","Etablissement gestionnaire des fonds","Code co-financeur","Etablissement"]
["Maison des Sciences de l’Homme de Bordeaux (MSHBx) ","MSHBx","UBM",{"$f":"IF(NOT(AND(ISBLANK(TAB_COFINANCEUR[[#This Row],[Acronyme du partenaire]]),ISBLANK(TAB_COFINANCEUR[[#This Row],[Etablissement gestionnaire des fonds]]))),TAB_COFINANCEUR[[#This Row],[Acronyme du partenaire]] & \" (\" & TAB_COFINANCEUR[[#This Row],[Etablissement gestionnaire des fonds]]& \")\",\"/\")","v":"MSHBx (UBM)"},{"$f":"IF(NOT(ISBLANK(TAB_COFINANCEUR[[#This Row],[Etablissement gestionnaire des fonds]])),TAB_COFINANCEUR[[#This Row],[Etablissement gestionnaire des fonds]],\"/\")","v":"UBM"}]
["Maison des Sciences de l’Homme de Bordeaux (MSHBx) ","MSHBx","CNRS",{"$f":"IF(NOT(AND(ISBLANK(TAB_COFINANCEUR[[#This Row],[Acronyme du partenaire]]),ISBLANK(TAB_COFINANCEUR[[#This Row],[Etablissement gestionnaire des fonds]]))),TAB_COFINANCEUR[[#This Row],[Acronyme du partenaire]] & \" (\" & TAB_COFINANCEUR[[#This Row],[Etablissement gestionnaire des fonds]]& \")\",\"/\")","v":"MSHBx (CNRS)"},{"$f":"IF(NOT(ISBLANK(TAB_COFINANCEUR[[#This Row],[Etablissement gestionnaire des fonds]])),TAB_COFINANCEUR[[#This Row],[Etablissement gestionnaire des fonds]],\"/\")","v":"CNRS"},"Attention, le financement via le CNRS ne sera qu'exceptionnel et justifié par des contraintes particulières du projet)",null,null,null,null,null,null,null,null,null,null,null,null,null,null,null,null,null,null,null,null,null,null,null,null,null,null,null,null,null,null,null,null,null,null,null,null,null,null,null,null,null,null,null,null,null,null,"Confinanceurs",{"$f":"AND($BE$8:$BE$26)","v":true}]
["LABORATOIRE ECO - UR 9999","LAB ECONOMIE","UB",{"$f":"IF(NOT(AND(ISBLANK(TAB_COFINANCEUR[[#This Row],[Acronyme du partenaire]]),ISBLANK(TAB_COFINANCEUR[[#This Row],[Etablissement gestionnaire des fonds]]))),TAB_COFINANCEUR[[#This Row],[Acronyme du partenaire]] & \" (\" & TAB_COFINANCEUR[[#This Row],[Etablissement gestionnaire des fonds]]& \")\",\"/\")","v":"LAB ECONOMIE (UB)"},{"$f":"IF(NOT(ISBLANK(TAB_COFINANCEUR[[#This Row],[Etablissement gestionnaire des fonds]])),TAB_COFINANCEUR[[#This Row],[Etablissement gestionnaire des fonds]],\"/\")","v":"UB"},null,null,null,null,null,null,null,null,null,null,null,null,null,null,null,null,null,null,null,null,null,null,null,null,null,null,null,null,null,null,null,null,null,null,null,null,null,null,null,null,null,null,null,null,null,null,null,"Ligne commencée",{"$f":"NOT(AND(ISBLANK(TAB_COFINANCEUR[[#This Row],[Nom du partenairee co-financeur]]),ISBLANK(TAB_COFINANCEUR[[#This Row],[Acronyme du partenaire]]),ISBLANK(TAB_COFINANCEUR[[#This Row],[Etablissement gestionnaire des fonds]])))","v":true},"Ligne terminée",{"$f":"NOT(OR(ISBLANK(TAB_COFINANCEUR[[#This Row],[Nom du partenairee co-financeur]]),ISBLANK(TAB_COFINANCEUR[[#This Row],[Acronyme du partenaire]]),ISBLANK(TAB_COFINANCEUR[[#This Row],[Etablissement gestionnaire des fonds]])))","v":true},{"$f":"IF($BB8,$BD8,TRUE)","v":true}]
["LABORATOIRE PHILO - UR 9999","LAB PHILO","UBM",{"$f":"IF(NOT(AND(ISBLANK(TAB_COFINANCEUR[[#This Row],[Acronyme du partenaire]]),ISBLANK(TAB_COFINANCEUR[[#This Row],[Etablissement gestionnaire des fonds]]))),TAB_COFINANCEUR[[#This Row],[Acronyme du partenaire]] & \" (\" & TAB_COFINANCEUR[[#This Row],[Etablissement gestionnaire des fonds]]& \")\",\"/\")","v":"LAB PHILO (UBM)"},{"$f":"IF(NOT(ISBLANK(TAB_COFINANCEUR[[#This Row],[Etablissement gestionnaire des fonds]])),TAB_COFINANCEUR[[#This Row],[Etablissement gestionnaire des fonds]],\"/\")","v":"UBM"},null,null,null,null,null,null,null,null,null,null,null,null,null,null,null,null,null,null,null,null,null,null,null,null,null,null,null,null,null,null,null,null,null,null,null,null,null,null,null,null,null,null,null,null,null,null,null,"Ligne commencée",{"$f":"NOT(AND(ISBLANK(TAB_COFINANCEUR[[#This Row],[Nom du partenairee co-financeur]]),ISBLANK(TAB_COFINANCEUR[[#This Row],[Acronyme du partenaire]]),ISBLANK(TAB_COFINANCEUR[[#This Row],[Etablissement gestionnaire des fonds]])))","v":true},"Ligne terminée",{"$f":"NOT(OR(ISBLANK(TAB_COFINANCEUR[[#This Row],[Nom du partenairee co-financeur]]),ISBLANK(TAB_COFINANCEUR[[#This Row],[Acronyme du partenaire]]),ISBLANK(TAB_COFINANCEUR[[#This Row],[Etablissement gestionnaire des fonds]])))","v":true},true]
["LABORATOIRE LANGUE - UMR 9999","LAB LANGUE","CNRS",{"$f":"IF(NOT(AND(ISBLANK(TAB_COFINANCEUR[[#This Row],[Acronyme du partenaire]]),ISBLANK(TAB_COFINANCEUR[[#This Row],[Etablissement gestionnaire des fonds]]))),TAB_COFINANCEUR[[#This Row],[Acronyme du partenaire]] & \" (\" & TAB_COFINANCEUR[[#This Row],[Etablissement gestionnaire des fonds]]& \")\",\"/\")","v":"LAB LANGUE (CNRS)"},{"$f":"IF(NOT(ISBLANK(TAB_COFINANCEUR[[#This Row],[Etablissement gestionnaire des fonds]])),TAB_COFINANCEUR[[#This Row],[Etablissement gestionnaire des fonds]],\"/\")","v":"CNRS"},{"$f":"INDIRECT(\"TAB_COFINANCEUR[Code co-financeur]\")","v":"LAB LANGUE (CNRS)"},null,null,null,null,null,null,null,null,null,null,null,null,null,null,null,null,null,null,null,null,null,null,null,null,null,null,null,null,null,null,null,null,null,null,null,null,null,null,null,null,null,null,null,null,null,null,"Ligne commencée",{"$f":"NOT(AND(ISBLANK(TAB_COFINANCEUR[[#This Row],[Nom du partenairee co-financeur]]),ISBLANK(TAB_COFINANCEUR[[#This Row],[Acronyme du partenaire]]),ISBLANK(TAB_COFINANCEUR[[#This Row],[Etablissement gestionnaire des fonds]])))","v":true},"Ligne terminée",{"$f":"NOT(OR(ISBLANK(TAB_COFINANCEUR[[#This Row],[Nom du partenairee co-financeur]]),ISBLANK(TAB_COFINANCEUR[[#This Row],[Acronyme du partenaire]]),ISBLANK(TAB_COFINANCEUR[[#This Row],[Etablissement gestionnaire des fonds]])))","v":true},true]
["Conseil Régional Nouvelle-Aquitaine","CR NoA","UBM",{"$f":"IF(NOT(AND(ISBLANK(TAB_COFINANCEUR[[#This Row],[Acronyme du partenaire]]),ISBLANK(TAB_COFINANCEUR[[#This Row],[Etablissement gestionnaire des fonds]]))),TAB_COFINANCEUR[[#This Row],[Acronyme du partenaire]] & \" (\" & TAB_COFINANCEUR[[#This Row],[Etablissement gestionnaire des fonds]]& \")\",\"/\")","v":"CR NoA (UBM)"},{"$f":"IF(NOT(ISBLANK(TAB_COFINANCEUR[[#This Row],[Etablissement gestionnaire des fonds]])),TAB_COFINANCEUR[[#This Row],[Etablissement gestionnaire des fonds]],\"/\")","v":"UBM"},null,null,null,null,null,null,null,null,null,null,null,null,null,null,null,null,null,null,null,null,null,null,null,null,null,null,null,null,null,null,null,null,null,null,null,null,null,null,null,null,null,null,null,null,null,null,null,"Ligne commencée",{"$f":"NOT(AND(ISBLANK(TAB_COFINANCEUR[[#This Row],[Nom du partenairee co-financeur]]),ISBLANK(TAB_COFINANCEUR[[#This Row],[Acronyme du partenaire]]),ISBLANK(TAB_COFINANCEUR[[#This Row],[Etablissement gestionnaire des fonds]])))","v":true},"Ligne terminée",{"$f":"NOT(OR(ISBLANK(TAB_COFINANCEUR[[#This Row],[Nom du partenairee co-financeur]]),ISBLANK(TAB_COFINANCEUR[[#This Row],[Acronyme du partenaire]]),ISBLANK(TAB_COFINANCEUR[[#This Row],[Etablissement gestionnaire des fonds]])))","v":true},true]
["Conseil Régional Nouvelle-Aquitaine","CR NoA","CNRS",{"$f":"IF(NOT(AND(ISBLANK(TAB_COFINANCEUR[[#This Row],[Acronyme du partenaire]]),ISBLANK(TAB_COFINANCEUR[[#This Row],[Etablissement gestionnaire des fonds]]))),TAB_COFINANCEUR[[#This Row],[Acronyme du partenaire]] & \" (\" & TAB_COFINANCEUR[[#This Row],[Etablissement gestionnaire des fonds]]& \")\",\"/\")","v":"CR NoA (CNRS)"},{"$f":"IF(NOT(ISBLANK(TAB_COFINANCEUR[[#This Row],[Etablissement gestionnaire des fonds]])),TAB_COFINANCEUR[[#This Row],[Etablissement gestionnaire des fonds]],\"/\")","v":"CNRS"},null,null,null,null,null,null,null,null,null,null,null,null,null,null,null,null,null,null,null,null,null,null,null,null,null,null,null,null,null,null,null,null,null,null,null,null,null,null,null,null,null,null,null,null,null,null,null,"Ligne commencée",{"$f":"NOT(AND(ISBLANK(TAB_COFINANCEUR[[#This Row],[Nom du partenairee co-financeur]]),ISBLANK(TAB_COFINANCEUR[[#This Row],[Acronyme du partenaire]]),ISBLANK(TAB_COFINANCEUR[[#This Row],[Etablissement gestionnaire des fonds]])))","v":true},"Ligne terminée",{"$f":"NOT(OR(ISBLANK(TAB_COFINANCEUR[[#This Row],[Nom du partenairee co-financeur]]),ISBLANK(TAB_COFINANCEUR[[#This Row],[Acronyme du partenaire]]),ISBLANK(TAB_COFINANCEUR[[#This Row],[Etablissement gestionnaire des fonds]])))","v":true},true]
["Conseil Régional Nouvelle-Aquitaine","CR NoA","UB",{"$f":"IF(NOT(AND(ISBLANK(TAB_COFINANCEUR[[#This Row],[Acronyme du partenaire]]),ISBLANK(TAB_COFINANCEUR[[#This Row],[Etablissement gestionnaire des fonds]]))),TAB_COFINANCEUR[[#This Row],[Acronyme du partenaire]] & \" (\" & TAB_COFINANCEUR[[#This Row],[Etablissement gestionnaire des fonds]]& \")\",\"/\")","v":"CR NoA (UB)"},{"$f":"IF(NOT(ISBLANK(TAB_COFINANCEUR[[#This Row],[Etablissement gestionnaire des fonds]])),TAB_COFINANCEUR[[#This Row],[Etablissement gestionnaire des fonds]],\"/\")","v":"UB"},null,null,null,null,null,null,null,null,null,null,null,null,null,null,null,null,null,null,null,null,null,null,null,null,null,null,null,null,null,null,null,null,null,null,null,null,null,null,null,null,null,null,null,null,null,null,null,"Ligne commencée",{"$f":"NOT(AND(ISBLANK(TAB_COFINANCEUR[[#This Row],[Nom du partenairee co-financeur]]),ISBLANK(TAB_COFINANCEUR[[#This Row],[Acronyme du partenaire]]),ISBLANK(TAB_COFINANCEUR[[#This Row],[Etablissement gestionnaire des fonds]])))","v":true},"Ligne terminée",{"$f":"NOT(OR(ISBLANK(TAB_COFINANCEUR[[#This Row],[Nom du partenairee co-financeur]]),ISBLANK(TAB_COFINANCEUR[[#This Row],[Acronyme du partenaire]]),ISBLANK(TAB_COFINANCEUR[[#This Row],[Etablissement gestionnaire des fonds]])))","v":true},true]
[null,null,null,{"$f":"IF(NOT(AND(ISBLANK(TAB_COFINANCEUR[[#This Row],[Acronyme du partenaire]]),ISBLANK(TAB_COFINANCEUR[[#This Row],[Etablissement gestionnaire des fonds]]))),TAB_COFINANCEUR[[#This Row],[Acronyme du partenaire]] & \" (\" & TAB_COFINANCEUR[[#This Row],[Etablissement gestionnaire des fonds]]& \")\",\"/\")","v":"/"},{"$f":"IF(NOT(ISBLANK(TAB_COFINANCEUR[[#This Row],[Etablissement gestionnaire des fonds]])),TAB_COFINANCEUR[[#This Row],[Etablissement gestionnaire des fonds]],\"/\")","v":"/"},"Exemple de budget :",null,null,null,null,null,null,null,null,null,null,null,null,null,null,null,null,null,null,null,null,null,null,null,null,null,null,null,null,null,null,null,null,null,null,null,null,null,null,null,null,null,null,null,null,null,null,"Ligne commencée",{"$f":"NOT(AND(ISBLANK(TAB_COFINANCEUR[[#This Row],[Nom du partenairee co-financeur]]),ISBLANK(TAB_COFINANCEUR[[#This Row],[Acronyme du partenaire]]),ISBLANK(TAB_COFINANCEUR[[#This Row],[Etablissement gestionnaire des fonds]])))","v":false},"Ligne terminée",{"$f":"NOT(OR(ISBLANK(TAB_COFINANCEUR[[#This Row],[Nom du partenairee co-financeur]]),ISBLANK(TAB_COFINANCEUR[[#This Row],[Acronyme du partenaire]]),ISBLANK(TAB_COFINANCEUR[[#This Row],[Etablissement gestionnaire des fonds]])))","v":false},true]
[null,null,null,{"$f":"IF(NOT(AND(ISBLANK(TAB_COFINANCEUR[[#This Row],[Acronyme du partenaire]]),ISBLANK(TAB_COFINANCEUR[[#This Row],[Etablissement gestionnaire des fonds]]))),TAB_COFINANCEUR[[#This Row],[Acronyme du partenaire]] & \" (\" & TAB_COFINANCEUR[[#This Row],[Etablissement gestionnaire des fonds]]& \")\",\"/\")","v":"/"},{"$f":"IF(NOT(ISBLANK(TAB_COFINANCEUR[[#This Row],[Etablissement gestionnaire des fonds]])),TAB_COFINANCEUR[[#This Row],[Etablissement gestionnaire des fonds]],\"/\")","v":"/"},null,null,null,null,null,null,null,null,null,null,null,null,null,null,null,null,null,null,null,null,null,null,null,null,null,null,null,null,null,null,null,null,null,null,null,null,null,null,null,null,null,null,null,null,null,null,null,"Ligne commencée",{"$f":"NOT(AND(ISBLANK(TAB_COFINANCEUR[[#This Row],[Nom du partenairee co-financeur]]),ISBLANK(TAB_COFINANCEUR[[#This Row],[Acronyme du partenaire]]),ISBLANK(TAB_COFINANCEUR[[#This Row],[Etablissement gestionnaire des fonds]])))","v":false},"Ligne terminée",{"$f":"NOT(OR(ISBLANK(TAB_COFINANCEUR[[#This Row],[Nom du partenairee co-financeur]]),ISBLANK(TAB_COFINANCEUR[[#This Row],[Acronyme du partenaire]]),ISBLANK(TAB_COFINANCEUR[[#This Row],[Etablissement gestionnaire des fonds]])))","v":false},true]
[null,null,null,{"$f":"IF(NOT(AND(ISBLANK(TAB_COFINANCEUR[[#This Row],[Acronyme du partenaire]]),ISBLANK(TAB_COFINANCEUR[[#This Row],[Etablissement gestionnaire des fonds]]))),TAB_COFINANCEUR[[#This Row],[Acronyme du partenaire]] & \" (\" & TAB_COFINANCEUR[[#This Row],[Etablissement gestionnaire des fonds]]& \")\",\"/\")","v":"/"},{"$f":"IF(NOT(ISBLANK(TAB_COFINANCEUR[[#This Row],[Etablissement gestionnaire des fonds]])),TAB_COFINANCEUR[[#This Row],[Etablissement gestionnaire des fonds]],\"/\")","v":"/"},null,null,null,null,null,null,null,null,null,null,null,null,null,null,null,null,null,null,null,null,null,null,null,null,null,null,null,null,null,null,null,null,null,null,null,null,null,null,null,null,null,null,null,null,null,null,null,"Ligne commencée",{"$f":"NOT(AND(ISBLANK(TAB_COFINANCEUR[[#This Row],[Nom du partenairee co-financeur]]),ISBLANK(TAB_COFINANCEUR[[#This Row],[Acronyme du partenaire]]),ISBLANK(TAB_COFINANCEUR[[#This Row],[Etablissement gestionnaire des fonds]])))","v":false},"Ligne terminée",{"$f":"NOT(OR(ISBLANK(TAB_COFINANCEUR[[#This Row],[Nom du partenairee co-financeur]]),ISBLANK(TAB_COFINANCEUR[[#This Row],[Acronyme du partenaire]]),ISBLANK(TAB_COFINANCEUR[[#This Row],[Etablissement gestionnaire des fonds]])))","v":false},true]
[null,null,null,{"$f":"IF(NOT(AND(ISBLANK(TAB_COFINANCEUR[[#This Row],[Acronyme du partenaire]]),ISBLANK(TAB_COFINANCEUR[[#This Row],[Etablissement gestionnaire des fonds]]))),TAB_COFINANCEUR[[#This Row],[Acronyme du partenaire]] & \" (\" & TAB_COFINANCEUR[[#This Row],[Etablissement gestionnaire des fonds]]& \")\",\"/\")","v":"/"},{"$f":"IF(NOT(ISBLANK(TAB_COFINANCEUR[[#This Row],[Etablissement gestionnaire des fonds]])),TAB_COFINANCEUR[[#This Row],[Etablissement gestionnaire des fonds]],\"/\")","v":"/"},null,null,null,null,null,null,null,null,null,null,null,null,null,null,null,null,null,null,null,null,null,null,null,null,null,null,null,null,null,null,null,null,null,null,null,null,null,null,null,null,null,null,null,null,null,null,null,"Ligne commencée",{"$f":"NOT(AND(ISBLANK(TAB_COFINANCEUR[[#This Row],[Nom du partenairee co-financeur]]),ISBLANK(TAB_COFINANCEUR[[#This Row],[Acronyme du partenaire]]),ISBLANK(TAB_COFINANCEUR[[#This Row],[Etablissement gestionnaire des fonds]])))","v":false},"Ligne terminée",{"$f":"NOT(OR(ISBLANK(TAB_COFINANCEUR[[#This Row],[Nom du partenairee co-financeur]]),ISBLANK(TAB_COFINANCEUR[[#This Row],[Acronyme du partenaire]]),ISBLANK(TAB_COFINANCEUR[[#This Row],[Etablissement gestionnaire des fonds]])))","v":false},true]
[null,null,null,{"$f":"IF(NOT(AND(ISBLANK(TAB_COFINANCEUR[[#This Row],[Acronyme du partenaire]]),ISBLANK(TAB_COFINANCEUR[[#This Row],[Etablissement gestionnaire des fonds]]))),TAB_COFINANCEUR[[#This Row],[Acronyme du partenaire]] & \" (\" & TAB_COFINANCEUR[[#This Row],[Etablissement gestionnaire des fonds]]& \")\",\"/\")","v":"/"},{"$f":"IF(NOT(ISBLANK(TAB_COFINANCEUR[[#This Row],[Etablissement gestionnaire des fonds]])),TAB_COFINANCEUR[[#This Row],[Etablissement gestionnaire des fonds]],\"/\")","v":"/"},null,null,null,null,null,null,null,null,null,null,null,null,null,null,null,null,null,null,null,null,null,null,null,null,null,null,null,null,null,null,null,null,null,null,null,null,null,null,null,null,null,null,null,null,null,null,null,"Ligne commencée",{"$f":"NOT(AND(ISBLANK(TAB_COFINANCEUR[[#This Row],[Nom du partenairee co-financeur]]),ISBLANK(TAB_COFINANCEUR[[#This Row],[Acronyme du partenaire]]),ISBLANK(TAB_COFINANCEUR[[#This Row],[Etablissement gestionnaire des fonds]])))","v":false},"Ligne terminée",{"$f":"NOT(OR(ISBLANK(TAB_COFINANCEUR[[#This Row],[Nom du partenairee co-financeur]]),ISBLANK(TAB_COFINANCEUR[[#This Row],[Acronyme du partenaire]]),ISBLANK(TAB_COFINANCEUR[[#This Row],[Etablissement gestionnaire des fonds]])))","v":false},true]
[null,null,null,{"$f":"IF(NOT(AND(ISBLANK(TAB_COFINANCEUR[[#This Row],[Acronyme du partenaire]]),ISBLANK(TAB_COFINANCEUR[[#This Row],[Etablissement gestionnaire des fonds]]))),TAB_COFINANCEUR[[#This Row],[Acronyme du partenaire]] & \" (\" & TAB_COFINANCEUR[[#This Row],[Etablissement gestionnaire des fonds]]& \")\",\"/\")","v":"/"},{"$f":"IF(NOT(ISBLANK(TAB_COFINANCEUR[[#This Row],[Etablissement gestionnaire des fonds]])),TAB_COFINANCEUR[[#This Row],[Etablissement gestionnaire des fonds]],\"/\")","v":"/"},null,null,null,null,null,null,null,null,null,null,null,null,null,null,null,null,null,null,null,null,null,null,null,null,null,null,null,null,null,null,null,null,null,null,null,null,null,null,null,null,null,null,null,null,null,null,null,"Ligne commencée",{"$f":"NOT(AND(ISBLANK(TAB_COFINANCEUR[[#This Row],[Nom du partenairee co-financeur]]),ISBLANK(TAB_COFINANCEUR[[#This Row],[Acronyme du partenaire]]),ISBLANK(TAB_COFINANCEUR[[#This Row],[Etablissement gestionnaire des fonds]])))","v":false},"Ligne terminée",{"$f":"NOT(OR(ISBLANK(TAB_COFINANCEUR[[#This Row],[Nom du partenairee co-financeur]]),ISBLANK(TAB_COFINANCEUR[[#This Row],[Acronyme du partenaire]]),ISBLANK(TAB_COFINANCEUR[[#This Row],[Etablissement gestionnaire des fonds]])))","v":false},true]
[null,null,null,{"$f":"IF(NOT(AND(ISBLANK(TAB_COFINANCEUR[[#This Row],[Acronyme du partenaire]]),ISBLANK(TAB_COFINANCEUR[[#This Row],[Etablissement gestionnaire des fonds]]))),TAB_COFINANCEUR[[#This Row],[Acronyme du partenaire]] & \" (\" & TAB_COFINANCEUR[[#This Row],[Etablissement gestionnaire des fonds]]& \")\",\"/\")","v":"/"},{"$f":"IF(NOT(ISBLANK(TAB_COFINANCEUR[[#This Row],[Etablissement gestionnaire des fonds]])),TAB_COFINANCEUR[[#This Row],[Etablissement gestionnaire des fonds]],\"/\")","v":"/"},null,null,null,null,null,null,null,null,null,null,null,null,null,null,null,null,null,null,null,null,null,null,null,null,null,null,null,null,null,null,null,null,null,null,null,null,null,null,null,null,null,null,null,null,null,null,null,"Ligne commencée",{"$f":"NOT(AND(ISBLANK(TAB_COFINANCEUR[[#This Row],[Nom du partenairee co-financeur]]),ISBLANK(TAB_COFINANCEUR[[#This Row],[Acronyme du partenaire]]),ISBLANK(TAB_COFINANCEUR[[#This Row],[Etablissement gestionnaire des fonds]])))","v":false},"Ligne terminée",{"$f":"NOT(OR(ISBLANK(TAB_COFINANCEUR[[#This Row],[Nom du partenairee co-financeur]]),ISBLANK(TAB_COFINANCEUR[[#This Row],[Acronyme du partenaire]]),ISBLANK(TAB_COFINANCEUR[[#This Row],[Etablissement gestionnaire des fonds]])))","v":false},true]
[null,null,null,{"$f":"IF(NOT(AND(ISBLANK(TAB_COFINANCEUR[[#This Row],[Acronyme du partenaire]]),ISBLANK(TAB_COFINANCEUR[[#This Row],[Etablissement gestionnaire des fonds]]))),TAB_COFINANCEUR[[#This Row],[Acronyme du partenaire]] & \" (\" & TAB_COFINANCEUR[[#This Row],[Etablissement gestionnaire des fonds]]& \")\",\"/\")","v":"/"},{"$f":"IF(NOT(ISBLANK(TAB_COFINANCEUR[[#This Row],[Etablissement gestionnaire des fonds]])),TAB_COFINANCEUR[[#This Row],[Etablissement gestionnaire des fonds]],\"/\")","v":"/"},null,null,null,null,null,null,null,null,null,null,null,null,null,null,null,null,null,null,null,null,null,null,null,null,null,null,null,null,null,null,null,null,null,null,null,null,null,null,null,null,null,null,null,null,null,null,null,"Ligne commencée",{"$f":"NOT(AND(ISBLANK(TAB_COFINANCEUR[[#This Row],[Nom du partenairee co-financeur]]),ISBLANK(TAB_COFINANCEUR[[#This Row],[Acronyme du partenaire]]),ISBLANK(TAB_COFINANCEUR[[#This Row],[Etablissement gestionnaire des fonds]])))","v":false},"Ligne terminée",{"$f":"NOT(OR(ISBLANK(TAB_COFINANCEUR[[#This Row],[Nom du partenairee co-financeur]]),ISBLANK(TAB_COFINANCEUR[[#This Row],[Acronyme du partenaire]]),ISBLANK(TAB_COFINANCEUR[[#This Row],[Etablissement gestionnaire des fonds]])))","v":false},true]
[null,null,null,{"$f":"IF(NOT(AND(ISBLANK(TAB_COFINANCEUR[[#This Row],[Acronyme du partenaire]]),ISBLANK(TAB_COFINANCEUR[[#This Row],[Etablissement gestionnaire des fonds]]))),TAB_COFINANCEUR[[#This Row],[Acronyme du partenaire]] & \" (\" & TAB_COFINANCEUR[[#This Row],[Etablissement gestionnaire des fonds]]& \")\",\"/\")","v":"/"},{"$f":"IF(NOT(ISBLANK(TAB_COFINANCEUR[[#This Row],[Etablissement gestionnaire des fonds]])),TAB_COFINANCEUR[[#This Row],[Etablissement gestionnaire des fonds]],\"/\")","v":"/"},null,null,null,null,null,null,null,null,null,null,null,null,null,null,null,null,null,null,null,null,null,null,null,null,null,null,null,null,null,null,null,null,null,null,null,null,null,null,null,null,null,null,null,null,null,null,null,"Ligne commencée",{"$f":"NOT(AND(ISBLANK(TAB_COFINANCEUR[[#This Row],[Nom du partenairee co-financeur]]),ISBLANK(TAB_COFINANCEUR[[#This Row],[Acronyme du partenaire]]),ISBLANK(TAB_COFINANCEUR[[#This Row],[Etablissement gestionnaire des fonds]])))","v":false},"Ligne terminée",{"$f":"NOT(OR(ISBLANK(TAB_COFINANCEUR[[#This Row],[Nom du partenairee co-financeur]]),ISBLANK(TAB_COFINANCEUR[[#This Row],[Acronyme du partenaire]]),ISBLANK(TAB_COFINANCEUR[[#This Row],[Etablissement gestionnaire des fonds]])))","v":false},true]
[null,null,null,{"$f":"IF(NOT(AND(ISBLANK(TAB_COFINANCEUR[[#This Row],[Acronyme du partenaire]]),ISBLANK(TAB_COFINANCEUR[[#This Row],[Etablissement gestionnaire des fonds]]))),TAB_COFINANCEUR[[#This Row],[Acronyme du partenaire]] & \" (\" & TAB_COFINANCEUR[[#This Row],[Etablissement gestionnaire des fonds]]& \")\",\"/\")","v":"/"},{"$f":"IF(NOT(ISBLANK(TAB_COFINANCEUR[[#This Row],[Etablissement gestionnaire des fonds]])),TAB_COFINANCEUR[[#This Row],[Etablissement gestionnaire des fonds]],\"/\")","v":"/"},null,null,null,null,null,null,null,null,null,null,null,null,null,null,null,null,null,null,null,null,null,null,null,null,null,null,null,null,null,null,null,null,null,null,null,null,null,null,null,null,null,null,null,null,null,null,null,"Ligne commencée",{"$f":"NOT(AND(ISBLANK(TAB_COFINANCEUR[[#This Row],[Nom du partenairee co-financeur]]),ISBLANK(TAB_COFINANCEUR[[#This Row],[Acronyme du partenaire]]),ISBLANK(TAB_COFINANCEUR[[#This Row],[Etablissement gestionnaire des fonds]])))","v":false},"Ligne terminée",{"$f":"NOT(OR(ISBLANK(TAB_COFINANCEUR[[#This Row],[Nom du partenairee co-financeur]]),ISBLANK(TAB_COFINANCEUR[[#This Row],[Acronyme du partenaire]]),ISBLANK(TAB_COFINANCEUR[[#This Row],[Etablissement gestionnaire des fonds]])))","v":false},true]
[null,null,null,{"$f":"IF(NOT(AND(ISBLANK(TAB_COFINANCEUR[[#This Row],[Acronyme du partenaire]]),ISBLANK(TAB_COFINANCEUR[[#This Row],[Etablissement gestionnaire des fonds]]))),TAB_COFINANCEUR[[#This Row],[Acronyme du partenaire]] & \" (\" & TAB_COFINANCEUR[[#This Row],[Etablissement gestionnaire des fonds]]& \")\",\"/\")","v":"/"},{"$f":"IF(NOT(ISBLANK(TAB_COFINANCEUR[[#This Row],[Etablissement gestionnaire des fonds]])),TAB_COFINANCEUR[[#This Row],[Etablissement gestionnaire des fonds]],\"/\")","v":"/"},null,null,null,null,null,null,null,null,null,null,null,null,null,null,null,null,null,null,null,null,null,null,null,null,null,null,null,null,null,null,null,null,null,null,null,null,null,null,null,null,null,null,null,null,null,null,null,"Ligne commencée",{"$f":"NOT(AND(ISBLANK(TAB_COFINANCEUR[[#This Row],[Nom du partenairee co-financeur]]),ISBLANK(TAB_COFINANCEUR[[#This Row],[Acronyme du partenaire]]),ISBLANK(TAB_COFINANCEUR[[#This Row],[Etablissement gestionnaire des fonds]])))","v":false},"Ligne terminée",{"$f":"NOT(OR(ISBLANK(TAB_COFINANCEUR[[#This Row],[Nom du partenairee co-financeur]]),ISBLANK(TAB_COFINANCEUR[[#This Row],[Acronyme du partenaire]]),ISBLANK(TAB_COFINANCEUR[[#This Row],[Etablissement gestionnaire des fonds]])))","v":false},true]
[null,null,null,{"$f":"IF(NOT(AND(ISBLANK(TAB_COFINANCEUR[[#This Row],[Acronyme du partenaire]]),ISBLANK(TAB_COFINANCEUR[[#This Row],[Etablissement gestionnaire des fonds]]))),TAB_COFINANCEUR[[#This Row],[Acronyme du partenaire]] & \" (\" & TAB_COFINANCEUR[[#This Row],[Etablissement gestionnaire des fonds]]& \")\",\"/\")","v":"/"},{"$f":"IF(NOT(ISBLANK(TAB_COFINANCEUR[[#This Row],[Etablissement gestionnaire des fonds]])),TAB_COFINANCEUR[[#This Row],[Etablissement gestionnaire des fonds]],\"/\")","v":"/"},null,null,null,null,null,null,null,null,null,null,null,null,null,null,null,null,null,null,null,null,null,null,null,null,null,null,null,null,null,null,null,null,null,null,null,null,null,null,null,null,null,null,null,null,null,null,null,"Ligne commencée",{"$f":"NOT(AND(ISBLANK(TAB_COFINANCEUR[[#This Row],[Nom du partenairee co-financeur]]),ISBLANK(TAB_COFINANCEUR[[#This Row],[Acronyme du partenaire]]),ISBLANK(TAB_COFINANCEUR[[#This Row],[Etablissement gestionnaire des fonds]])))","v":false},"Ligne terminée",{"$f":"NOT(OR(ISBLANK(TAB_COFINANCEUR[[#This Row],[Nom du partenairee co-financeur]]),ISBLANK(TAB_COFINANCEUR[[#This Row],[Acronyme du partenaire]]),ISBLANK(TAB_COFINANCEUR[[#This Row],[Etablissement gestionnaire des fonds]])))","v":false},true]
[null,null,null,{"$f":"IF(NOT(AND(ISBLANK(TAB_COFINANCEUR[[#This Row],[Acronyme du partenaire]]),ISBLANK(TAB_COFINANCEUR[[#This Row],[Etablissement gestionnaire des fonds]]))),TAB_COFINANCEUR[[#This Row],[Acronyme du partenaire]] & \" (\" & TAB_COFINANCEUR[[#This Row],[Etablissement gestionnaire des fonds]]& \")\",\"/\")","v":"/"},{"$f":"IF(NOT(ISBLANK(TAB_COFINANCEUR[[#This Row],[Etablissement gestionnaire des fonds]])),TAB_COFINANCEUR[[#This Row],[Etablissement gestionnaire des fonds]],\"/\")","v":"/"},null,null,null,null,null,null,null,null,null,null,null,null,null,null,null,null,null,null,null,null,null,null,null,null,null,null,null,null,null,null,null,null,null,null,null,null,null,null,null,null,null,null,null,null,null,null,null,"Ligne commencée",{"$f":"NOT(AND(ISBLANK(TAB_COFINANCEUR[[#This Row],[Nom du partenairee co-financeur]]),ISBLANK(TAB_COFINANCEUR[[#This Row],[Acronyme du partenaire]]),ISBLANK(TAB_COFINANCEUR[[#This Row],[Etablissement gestionnaire des fonds]])))","v":false},"Ligne terminée",{"$f":"NOT(OR(ISBLANK(TAB_COFINANCEUR[[#This Row],[Nom du partenairee co-financeur]]),ISBLANK(TAB_COFINANCEUR[[#This Row],[Acronyme du partenaire]]),ISBLANK(TAB_COFINANCEUR[[#This Row],[Etablissement gestionnaire des fonds]])))","v":false},true]
[]
["DEPENSES PREVUES"]
[]
["Saisir une ligne par dépense et par financeur et par poste de dépense. Ainsi un poste de dépense financé par deux cofinanceurs figurera sur deux lignes (une par financeur)",null,null,null,null,null,null,null,null,null,null,null,null,null,null,null,null,null,null,null,null,null,null,null,null,null,null,null,null,null,null,null,null,null,null,null,null,null,null,null,null,null,null,null,null,null,null,null,null,null,null,null,"Demande MSHBx",{"$f":"IF(DEMANDE_BUDGETAIRE>0,TRUE,FALSE)","v":false}]
["Poste de dépense","Nature de la dépense","Financeur","Financement acquis ?","Montant estimatif de la dépense (€)","Commentaire","Etablissement de gestion","PART 2023","PART 2024","TOTAL",null,null,null,null,null,null,null,null,null,null,null,null,null,null,null,null,null,null,null,null,null,null,null,null,null,null,null,null,null,null,null,null,null,null,null,null,null,null,null,null,null,null,"Dépenses saisies",{"$f":"AND($BE$32:$BE$57)","v":true}]
[null,null,null,null,null,null,{"$f":"IF(TAB_BUDGET[[#This Row],[Financeur]]<>\"\",VLOOKUP(TAB_BUDGET[[#This Row],[Financeur]],TAB_COFINANCEUR[[Code co-financeur]:[Etablissement]],2,FALSE),\"\")","v":""},{"$f":"TAB_BUDGET[[#This Row],[Montant estimatif de la dépense (€)]]-TAB_BUDGET[[#This Row],[PART 2024]]","v":0},null,{"$f":"BUDGET!$H32+BUDGET!$I32","v":0},null,null,null,null,null,null,null,null,null,null,null,null,null,null,null,null,null,null,null,null,null,null,null,null,null,null,null,null,null,null,null,null,null,null,null,null,null,null,null,null,null,null,"Ligne commencée",{"$f":"NOT(AND(ISBLANK(TAB_BUDGET[[#This Row],[Poste de dépense]]),ISBLANK(TAB_BUDGET[[#This Row],[Nature de la dépense]]),ISBLANK(TAB_BUDGET[[#This Row],[Financeur]]),ISBLANK(TAB_BUDGET[[#This Row],[Financement acquis ?]]),TAB_BUDGET[[#This Row],[Montant estimatif de la dépense (€)]]<=0,ISBLANK(TAB_BUDGET[[#This Row],[Montant estimatif de la dépense (€)]])))","v":false},"Ligne terminée",{"$f":"NOT(OR(ISBLANK(TAB_BUDGET[[#This Row],[Poste de dépense]]),ISBLANK(TAB_BUDGET[[#This Row],[Nature de la dépense]]),ISBLANK(TAB_BUDGET[[#This Row],[Financeur]]),ISBLANK(TAB_BUDGET[[#This Row],[Financement acquis ?]]),TAB_BUDGET[[#This Row],[Montant estimatif de la dépense (€)]]<=0,ISBLANK(TAB_BUDGET[[#This Row],[Montant estimatif de la dépense (€)]])))","v":false},{"$f":"IF($BB32,$BD32,TRUE)","v":true}]
[null,null,null,null,null,null,{"$f":"IF(TAB_BUDGET[[#This Row],[Financeur]]<>\"\",VLOOKUP(TAB_BUDGET[[#This Row],[Financeur]],TAB_COFINANCEUR[[Code co-financeur]:[Etablissement]],2,FALSE),\"\")","v":""},{"$f":"TAB_BUDGET[[#This Row],[Montant estimatif de la dépense (€)]]-TAB_BUDGET[[#This Row],[PART 2024]]","v":0},null,{"$f":"BUDGET!$H33+BUDGET!$I33","v":0},null,null,null,null,null,null,null,null,null,null,null,null,null,null,null,null,null,null,null,null,null,null,null,null,null,null,null,null,null,null,null,null,null,null,null,null,null,null,null,null,null,null,"Ligne commencée",{"$f":"NOT(AND(ISBLANK(TAB_BUDGET[[#This Row],[Poste de dépense]]),ISBLANK(TAB_BUDGET[[#This Row],[Nature de la dépense]]),ISBLANK(TAB_BUDGET[[#This Row],[Financeur]]),ISBLANK(TAB_BUDGET[[#This Row],[Financement acquis ?]]),TAB_BUDGET[[#This Row],[Montant estimatif de la dépense (€)]]<=0,ISBLANK(TAB_BUDGET[[#This Row],[Montant estimatif de la dépense (€)]])))","v":false},"Ligne terminée",{"$f":"NOT(OR(ISBLANK(TAB_BUDGET[[#This Row],[Poste de dépense]]),ISBLANK(TAB_BUDGET[[#This Row],[Nature de la dépense]]),ISBLANK(TAB_BUDGET[[#This Row],[Financeur]]),ISBLANK(TAB_BUDGET[[#This Row],[Financement acquis ?]]),TAB_BUDGET[[#This Row],[Montant estimatif de la dépense (€)]]<=0,ISBLANK(TAB_BUDGET[[#This Row],[Montant estimatif de la dépense (€)]])))","v":false},true]
[null,null,null,null,null,null,{"$f":"IF(TAB_BUDGET[[#This Row],[Financeur]]<>\"\",VLOOKUP(TAB_BUDGET[[#This Row],[Financeur]],TAB_COFINANCEUR[[Code co-financeur]:[Etablissement]],2,FALSE),\"\")","v":""},{"$f":"TAB_BUDGET[[#This Row],[Montant estimatif de la dépense (€)]]-TAB_BUDGET[[#This Row],[PART 2024]]","v":0},null,{"$f":"BUDGET!$H34+BUDGET!$I34","v":0},null,null,null,null,null,null,null,null,null,null,null,null,null,null,null,null,null,null,null,null,null,null,null,null,null,null,null,null,null,null,null,null,null,null,null,null,null,null,null,null,null,null,"Ligne commencée",{"$f":"NOT(AND(ISBLANK(TAB_BUDGET[[#This Row],[Poste de dépense]]),ISBLANK(TAB_BUDGET[[#This Row],[Nature de la dépense]]),ISBLANK(TAB_BUDGET[[#This Row],[Financeur]]),ISBLANK(TAB_BUDGET[[#This Row],[Financement acquis ?]]),TAB_BUDGET[[#This Row],[Montant estimatif de la dépense (€)]]<=0,ISBLANK(TAB_BUDGET[[#This Row],[Montant estimatif de la dépense (€)]])))","v":false},"Ligne terminée",{"$f":"NOT(OR(ISBLANK(TAB_BUDGET[[#This Row],[Poste de dépense]]),ISBLANK(TAB_BUDGET[[#This Row],[Nature de la dépense]]),ISBLANK(TAB_BUDGET[[#This Row],[Financeur]]),ISBLANK(TAB_BUDGET[[#This Row],[Financement acquis ?]]),TAB_BUDGET[[#This Row],[Montant estimatif de la dépense (€)]]<=0,ISBLANK(TAB_BUDGET[[#This Row],[Montant estimatif de la dépense (€)]])))","v":false},true]
[null,null,null,null,null,null,{"$f":"IF(TAB_BUDGET[[#This Row],[Financeur]]<>\"\",VLOOKUP(TAB_BUDGET[[#This Row],[Financeur]],TAB_COFINANCEUR[[Code co-financeur]:[Etablissement]],2,FALSE),\"\")","v":""},{"$f":"TAB_BUDGET[[#This Row],[Montant estimatif de la dépense (€)]]-TAB_BUDGET[[#This Row],[PART 2024]]","v":0},null,{"$f":"BUDGET!$H35+BUDGET!$I35","v":0},null,null,null,null,null,null,null,null,null,null,null,null,null,null,null,null,null,null,null,null,null,null,null,null,null,null,null,null,null,null,null,null,null,null,null,null,null,null,null,null,null,null,"Ligne commencée",{"$f":"NOT(AND(ISBLANK(TAB_BUDGET[[#This Row],[Poste de dépense]]),ISBLANK(TAB_BUDGET[[#This Row],[Nature de la dépense]]),ISBLANK(TAB_BUDGET[[#This Row],[Financeur]]),ISBLANK(TAB_BUDGET[[#This Row],[Financement acquis ?]]),TAB_BUDGET[[#This Row],[Montant estimatif de la dépense (€)]]<=0,ISBLANK(TAB_BUDGET[[#This Row],[Montant estimatif de la dépense (€)]])))","v":false},"Ligne terminée",{"$f":"NOT(OR(ISBLANK(TAB_BUDGET[[#This Row],[Poste de dépense]]),ISBLANK(TAB_BUDGET[[#This Row],[Nature de la dépense]]),ISBLANK(TAB_BUDGET[[#This Row],[Financeur]]),ISBLANK(TAB_BUDGET[[#This Row],[Financement acquis ?]]),TAB_BUDGET[[#This Row],[Montant estimatif de la dépense (€)]]<=0,ISBLANK(TAB_BUDGET[[#This Row],[Montant estimatif de la dépense (€)]])))","v":false},true]
[null,null,null,null,null,null,{"$f":"IF(TAB_BUDGET[[#This Row],[Financeur]]<>\"\",VLOOKUP(TAB_BUDGET[[#This Row],[Financeur]],TAB_COFINANCEUR[[Code co-financeur]:[Etablissement]],2,FALSE),\"\")","v":""},{"$f":"TAB_BUDGET[[#This Row],[Montant estimatif de la dépense (€)]]-TAB_BUDGET[[#This Row],[PART 2024]]","v":0},null,{"$f":"BUDGET!$H36+BUDGET!$I36","v":0},null,null,null,null,null,null,null,null,null,null,null,null,null,null,null,null,null,null,null,null,null,null,null,null,null,null,null,null,null,null,null,null,null,null,null,null,null,null,null,null,null,null,"Ligne commencée",{"$f":"NOT(AND(ISBLANK(TAB_BUDGET[[#This Row],[Poste de dépense]]),ISBLANK(TAB_BUDGET[[#This Row],[Nature de la dépense]]),ISBLANK(TAB_BUDGET[[#This Row],[Financeur]]),ISBLANK(TAB_BUDGET[[#This Row],[Financement acquis ?]]),TAB_BUDGET[[#This Row],[Montant estimatif de la dépense (€)]]<=0,ISBLANK(TAB_BUDGET[[#This Row],[Montant estimatif de la dépense (€)]])))","v":false},"Ligne terminée",{"$f":"NOT(OR(ISBLANK(TAB_BUDGET[[#This Row],[Poste de dépense]]),ISBLANK(TAB_BUDGET[[#This Row],[Nature de la dépense]]),ISBLANK(TAB_BUDGET[[#This Row],[Financeur]]),ISBLANK(TAB_BUDGET[[#This Row],[Financement acquis ?]]),TAB_BUDGET[[#This Row],[Montant estimatif de la dépense (€)]]<=0,ISBLANK(TAB_BUDGET[[#This Row],[Montant estimatif de la dépense (€)]])))","v":false},true]
[null,null,null,null,null,null,{"$f":"IF(TAB_BUDGET[[#This Row],[Financeur]]<>\"\",VLOOKUP(TAB_BUDGET[[#This Row],[Financeur]],TAB_COFINANCEUR[[Code co-financeur]:[Etablissement]],2,FALSE),\"\")","v":""},{"$f":"TAB_BUDGET[[#This Row],[Montant estimatif de la dépense (€)]]-TAB_BUDGET[[#This Row],[PART 2024]]","v":0},null,{"$f":"BUDGET!$H37+BUDGET!$I37","v":0},null,null,null,null,null,null,null,null,null,null,null,null,null,null,null,null,null,null,null,null,null,null,null,null,null,null,null,null,null,null,null,null,null,null,null,null,null,null,null,null,null,null,"Ligne commencée",{"$f":"NOT(AND(ISBLANK(TAB_BUDGET[[#This Row],[Poste de dépense]]),ISBLANK(TAB_BUDGET[[#This Row],[Nature de la dépense]]),ISBLANK(TAB_BUDGET[[#This Row],[Financeur]]),ISBLANK(TAB_BUDGET[[#This Row],[Financement acquis ?]]),TAB_BUDGET[[#This Row],[Montant estimatif de la dépense (€)]]<=0,ISBLANK(TAB_BUDGET[[#This Row],[Montant estimatif de la dépense (€)]])))","v":false},"Ligne terminée",{"$f":"NOT(OR(ISBLANK(TAB_BUDGET[[#This Row],[Poste de dépense]]),ISBLANK(TAB_BUDGET[[#This Row],[Nature de la dépense]]),ISBLANK(TAB_BUDGET[[#This Row],[Financeur]]),ISBLANK(TAB_BUDGET[[#This Row],[Financement acquis ?]]),TAB_BUDGET[[#This Row],[Montant estimatif de la dépense (€)]]<=0,ISBLANK(TAB_BUDGET[[#This Row],[Montant estimatif de la dépense (€)]])))","v":false},true]
[null,null,null,null,null,null,{"$f":"IF(TAB_BUDGET[[#This Row],[Financeur]]<>\"\",VLOOKUP(TAB_BUDGET[[#This Row],[Financeur]],TAB_COFINANCEUR[[Code co-financeur]:[Etablissement]],2,FALSE),\"\")","v":""},{"$f":"TAB_BUDGET[[#This Row],[Montant estimatif de la dépense (€)]]-TAB_BUDGET[[#This Row],[PART 2024]]","v":0},null,{"$f":"BUDGET!$H38+BUDGET!$I38","v":0},null,null,null,null,null,null,null,null,null,null,null,null,null,null,null,null,null,null,null,null,null,null,null,null,null,null,null,null,null,null,null,null,null,null,null,null,null,null,null,null,null,null,"Ligne commencée",{"$f":"NOT(AND(ISBLANK(TAB_BUDGET[[#This Row],[Poste de dépense]]),ISBLANK(TAB_BUDGET[[#This Row],[Nature de la dépense]]),ISBLANK(TAB_BUDGET[[#This Row],[Financeur]]),ISBLANK(TAB_BUDGET[[#This Row],[Financement acquis ?]]),TAB_BUDGET[[#This Row],[Montant estimatif de la dépense (€)]]<=0,ISBLANK(TAB_BUDGET[[#This Row],[Montant estimatif de la dépense (€)]])))","v":false},"Ligne terminée",{"$f":"NOT(OR(ISBLANK(TAB_BUDGET[[#This Row],[Poste de dépense]]),ISBLANK(TAB_BUDGET[[#This Row],[Nature de la dépense]]),ISBLANK(TAB_BUDGET[[#This Row],[Financeur]]),ISBLANK(TAB_BUDGET[[#This Row],[Financement acquis ?]]),TAB_BUDGET[[#This Row],[Montant estimatif de la dépense (€)]]<=0,ISBLANK(TAB_BUDGET[[#This Row],[Montant estimatif de la dépense (€)]])))","v":false},true]
[null,null,null,null,null,null,{"$f":"IF(TAB_BUDGET[[#This Row],[Financeur]]<>\"\",VLOOKUP(TAB_BUDGET[[#This Row],[Financeur]],TAB_COFINANCEUR[[Code co-financeur]:[Etablissement]],2,FALSE),\"\")","v":""},{"$f":"TAB_BUDGET[[#This Row],[Montant estimatif de la dépense (€)]]-TAB_BUDGET[[#This Row],[PART 2024]]","v":0},null,{"$f":"BUDGET!$H39+BUDGET!$I39","v":0},null,null,null,null,null,null,null,null,null,null,null,null,null,null,null,null,null,null,null,null,null,null,null,null,null,null,null,null,null,null,null,null,null,null,null,null,null,null,null,null,null,null,"Ligne commencée",{"$f":"NOT(AND(ISBLANK(TAB_BUDGET[[#This Row],[Poste de dépense]]),ISBLANK(TAB_BUDGET[[#This Row],[Nature de la dépense]]),ISBLANK(TAB_BUDGET[[#This Row],[Financeur]]),ISBLANK(TAB_BUDGET[[#This Row],[Financement acquis ?]]),TAB_BUDGET[[#This Row],[Montant estimatif de la dépense (€)]]<=0,ISBLANK(TAB_BUDGET[[#This Row],[Montant estimatif de la dépense (€)]])))","v":false},"Ligne terminée",{"$f":"NOT(OR(ISBLANK(TAB_BUDGET[[#This Row],[Poste de dépense]]),ISBLANK(TAB_BUDGET[[#This Row],[Nature de la dépense]]),ISBLANK(TAB_BUDGET[[#This Row],[Financeur]]),ISBLANK(TAB_BUDGET[[#This Row],[Financement acquis ?]]),TAB_BUDGET[[#This Row],[Montant estimatif de la dépense (€)]]<=0,ISBLANK(TAB_BUDGET[[#This Row],[Montant estimatif de la dépense (€)]])))","v":false},true]
[null,null,null,null,null,null,{"$f":"IF(TAB_BUDGET[[#This Row],[Financeur]]<>\"\",VLOOKUP(TAB_BUDGET[[#This Row],[Financeur]],TAB_COFINANCEUR[[Code co-financeur]:[Etablissement]],2,FALSE),\"\")","v":""},{"$f":"TAB_BUDGET[[#This Row],[Montant estimatif de la dépense (€)]]-TAB_BUDGET[[#This Row],[PART 2024]]","v":0},null,{"$f":"BUDGET!$H40+BUDGET!$I40","v":0},null,null,null,null,null,null,null,null,null,null,null,null,null,null,null,null,null,null,null,null,null,null,null,null,null,null,null,null,null,null,null,null,null,null,null,null,null,null,null,null,null,null,"Ligne commencée",{"$f":"NOT(AND(ISBLANK(TAB_BUDGET[[#This Row],[Poste de dépense]]),ISBLANK(TAB_BUDGET[[#This Row],[Nature de la dépense]]),ISBLANK(TAB_BUDGET[[#This Row],[Financeur]]),ISBLANK(TAB_BUDGET[[#This Row],[Financement acquis ?]]),TAB_BUDGET[[#This Row],[Montant estimatif de la dépense (€)]]<=0,ISBLANK(TAB_BUDGET[[#This Row],[Montant estimatif de la dépense (€)]])))","v":false},"Ligne terminée",{"$f":"NOT(OR(ISBLANK(TAB_BUDGET[[#This Row],[Poste de dépense]]),ISBLANK(TAB_BUDGET[[#This Row],[Nature de la dépense]]),ISBLANK(TAB_BUDGET[[#This Row],[Financeur]]),ISBLANK(TAB_BUDGET[[#This Row],[Financement acquis ?]]),TAB_BUDGET[[#This Row],[Montant estimatif de la dépense (€)]]<=0,ISBLANK(TAB_BUDGET[[#This Row],[Montant estimatif de la dépense (€)]])))","v":false},true]
[null,null,null,null,null,null,{"$f":"IF(TAB_BUDGET[[#This Row],[Financeur]]<>\"\",VLOOKUP(TAB_BUDGET[[#This Row],[Financeur]],TAB_COFINANCEUR[[Code co-financeur]:[Etablissement]],2,FALSE),\"\")","v":""},{"$f":"TAB_BUDGET[[#This Row],[Montant estimatif de la dépense (€)]]-TAB_BUDGET[[#This Row],[PART 2024]]","v":0},null,{"$f":"BUDGET!$H41+BUDGET!$I41","v":0},null,null,null,null,null,null,null,null,null,null,null,null,null,null,null,null,null,null,null,null,null,null,null,null,null,null,null,null,null,null,null,null,null,null,null,null,null,null,null,null,null,null,"Ligne commencée",{"$f":"NOT(AND(ISBLANK(TAB_BUDGET[[#This Row],[Poste de dépense]]),ISBLANK(TAB_BUDGET[[#This Row],[Nature de la dépense]]),ISBLANK(TAB_BUDGET[[#This Row],[Financeur]]),ISBLANK(TAB_BUDGET[[#This Row],[Financement acquis ?]]),TAB_BUDGET[[#This Row],[Montant estimatif de la dépense (€)]]<=0,ISBLANK(TAB_BUDGET[[#This Row],[Montant estimatif de la dépense (€)]])))","v":false},"Ligne terminée",{"$f":"NOT(OR(ISBLANK(TAB_BUDGET[[#This Row],[Poste de dépense]]),ISBLANK(TAB_BUDGET[[#This Row],[Nature de la dépense]]),ISBLANK(TAB_BUDGET[[#This Row],[Financeur]]),ISBLANK(TAB_BUDGET[[#This Row],[Financement acquis ?]]),TAB_BUDGET[[#This Row],[Montant estimatif de la dépense (€)]]<=0,ISBLANK(TAB_BUDGET[[#This Row],[Montant estimatif de la dépense (€)]])))","v":false},true]
[null,null,null,null,null,null,{"$f":"IF(TAB_BUDGET[[#This Row],[Financeur]]<>\"\",VLOOKUP(TAB_BUDGET[[#This Row],[Financeur]],TAB_COFINANCEUR[[Code co-financeur]:[Etablissement]],2,FALSE),\"\")","v":""},{"$f":"TAB_BUDGET[[#This Row],[Montant estimatif de la dépense (€)]]-TAB_BUDGET[[#This Row],[PART 2024]]","v":0},null,{"$f":"BUDGET!$H42+BUDGET!$I42","v":0},null,null,null,null,null,null,null,null,null,null,null,null,null,null,null,null,null,null,null,null,null,null,null,null,null,null,null,null,null,null,null,null,null,null,null,null,null,null,null,null,null,null,"Ligne commencée",{"$f":"NOT(AND(ISBLANK(TAB_BUDGET[[#This Row],[Poste de dépense]]),ISBLANK(TAB_BUDGET[[#This Row],[Nature de la dépense]]),ISBLANK(TAB_BUDGET[[#This Row],[Financeur]]),ISBLANK(TAB_BUDGET[[#This Row],[Financement acquis ?]]),TAB_BUDGET[[#This Row],[Montant estimatif de la dépense (€)]]<=0,ISBLANK(TAB_BUDGET[[#This Row],[Montant estimatif de la dépense (€)]])))","v":false},"Ligne terminée",{"$f":"NOT(OR(ISBLANK(TAB_BUDGET[[#This Row],[Poste de dépense]]),ISBLANK(TAB_BUDGET[[#This Row],[Nature de la dépense]]),ISBLANK(TAB_BUDGET[[#This Row],[Financeur]]),ISBLANK(TAB_BUDGET[[#This Row],[Financement acquis ?]]),TAB_BUDGET[[#This Row],[Montant estimatif de la dépense (€)]]<=0,ISBLANK(TAB_BUDGET[[#This Row],[Montant estimatif de la dépense (€)]])))","v":false},true]
[null,null,null,null,null,null,{"$f":"IF(TAB_BUDGET[[#This Row],[Financeur]]<>\"\",VLOOKUP(TAB_BUDGET[[#This Row],[Financeur]],TAB_COFINANCEUR[[Code co-financeur]:[Etablissement]],2,FALSE),\"\")","v":""},{"$f":"TAB_BUDGET[[#This Row],[Montant estimatif de la dépense (€)]]-TAB_BUDGET[[#This Row],[PART 2024]]","v":0},null,{"$f":"BUDGET!$H43+BUDGET!$I43","v":0},null,null,null,null,null,null,null,null,null,null,null,null,null,null,null,null,null,null,null,null,null,null,null,null,null,null,null,null,null,null,null,null,null,null,null,null,null,null,null,null,null,null,"Ligne commencée",{"$f":"NOT(AND(ISBLANK(TAB_BUDGET[[#This Row],[Poste de dépense]]),ISBLANK(TAB_BUDGET[[#This Row],[Nature de la dépense]]),ISBLANK(TAB_BUDGET[[#This Row],[Financeur]]),ISBLANK(TAB_BUDGET[[#This Row],[Financement acquis ?]]),TAB_BUDGET[[#This Row],[Montant estimatif de la dépense (€)]]<=0,ISBLANK(TAB_BUDGET[[#This Row],[Montant estimatif de la dépense (€)]])))","v":false},"Ligne terminée",{"$f":"NOT(OR(ISBLANK(TAB_BUDGET[[#This Row],[Poste de dépense]]),ISBLANK(TAB_BUDGET[[#This Row],[Nature de la dépense]]),ISBLANK(TAB_BUDGET[[#This Row],[Financeur]]),ISBLANK(TAB_BUDGET[[#This Row],[Financement acquis ?]]),TAB_BUDGET[[#This Row],[Montant estimatif de la dépense (€)]]<=0,ISBLANK(TAB_BUDGET[[#This Row],[Montant estimatif de la dépense (€)]])))","v":false},true]
[null,null,null,null,null,null,{"$f":"IF(TAB_BUDGET[[#This Row],[Financeur]]<>\"\",VLOOKUP(TAB_BUDGET[[#This Row],[Financeur]],TAB_COFINANCEUR[[Code co-financeur]:[Etablissement]],2,FALSE),\"\")","v":""},{"$f":"TAB_BUDGET[[#This Row],[Montant estimatif de la dépense (€)]]-TAB_BUDGET[[#This Row],[PART 2024]]","v":0},null,{"$f":"BUDGET!$H44+BUDGET!$I44","v":0},null,null,null,null,null,null,null,null,null,null,null,null,null,null,null,null,null,null,null,null,null,null,null,null,null,null,null,null,null,null,null,null,null,null,null,null,null,null,null,null,null,null,"Ligne commencée",{"$f":"NOT(AND(ISBLANK(TAB_BUDGET[[#This Row],[Poste de dépense]]),ISBLANK(TAB_BUDGET[[#This Row],[Nature de la dépense]]),ISBLANK(TAB_BUDGET[[#This Row],[Financeur]]),ISBLANK(TAB_BUDGET[[#This Row],[Financement acquis ?]]),TAB_BUDGET[[#This Row],[Montant estimatif de la dépense (€)]]<=0,ISBLANK(TAB_BUDGET[[#This Row],[Montant estimatif de la dépense (€)]])))","v":false},"Ligne terminée",{"$f":"NOT(OR(ISBLANK(TAB_BUDGET[[#This Row],[Poste de dépense]]),ISBLANK(TAB_BUDGET[[#This Row],[Nature de la dépense]]),ISBLANK(TAB_BUDGET[[#This Row],[Financeur]]),ISBLANK(TAB_BUDGET[[#This Row],[Financement acquis ?]]),TAB_BUDGET[[#This Row],[Montant estimatif de la dépense (€)]]<=0,ISBLANK(TAB_BUDGET[[#This Row],[Montant estimatif de la dépense (€)]])))","v":false},true]
[null,null,null,null,null,null,{"$f":"IF(TAB_BUDGET[[#This Row],[Financeur]]<>\"\",VLOOKUP(TAB_BUDGET[[#This Row],[Financeur]],TAB_COFINANCEUR[[Code co-financeur]:[Etablissement]],2,FALSE),\"\")","v":""},{"$f":"TAB_BUDGET[[#This Row],[Montant estimatif de la dépense (€)]]-TAB_BUDGET[[#This Row],[PART 2024]]","v":0},null,{"$f":"BUDGET!$H45+BUDGET!$I45","v":0},null,null,null,null,null,null,null,null,null,null,null,null,null,null,null,null,null,null,null,null,null,null,null,null,null,null,null,null,null,null,null,null,null,null,null,null,null,null,null,null,null,null,"Ligne commencée",{"$f":"NOT(AND(ISBLANK(TAB_BUDGET[[#This Row],[Poste de dépense]]),ISBLANK(TAB_BUDGET[[#This Row],[Nature de la dépense]]),ISBLANK(TAB_BUDGET[[#This Row],[Financeur]]),ISBLANK(TAB_BUDGET[[#This Row],[Financement acquis ?]]),TAB_BUDGET[[#This Row],[Montant estimatif de la dépense (€)]]<=0,ISBLANK(TAB_BUDGET[[#This Row],[Montant estimatif de la dépense (€)]])))","v":false},"Ligne terminée",{"$f":"NOT(OR(ISBLANK(TAB_BUDGET[[#This Row],[Poste de dépense]]),ISBLANK(TAB_BUDGET[[#This Row],[Nature de la dépense]]),ISBLANK(TAB_BUDGET[[#This Row],[Financeur]]),ISBLANK(TAB_BUDGET[[#This Row],[Financement acquis ?]]),TAB_BUDGET[[#This Row],[Montant estimatif de la dépense (€)]]<=0,ISBLANK(TAB_BUDGET[[#This Row],[Montant estimatif de la dépense (€)]])))","v":false},true]
[null,null,null,null,null,null,{"$f":"IF(TAB_BUDGET[[#This Row],[Financeur]]<>\"\",VLOOKUP(TAB_BUDGET[[#This Row],[Financeur]],TAB_COFINANCEUR[[Code co-financeur]:[Etablissement]],2,FALSE),\"\")","v":""},{"$f":"TAB_BUDGET[[#This Row],[Montant estimatif de la dépense (€)]]-TAB_BUDGET[[#This Row],[PART 2024]]","v":0},null,{"$f":"BUDGET!$H46+BUDGET!$I46","v":0},null,null,null,null,null,null,null,null,null,null,null,null,null,null,null,null,null,null,null,null,null,null,null,null,null,null,null,null,null,null,null,null,null,null,null,null,null,null,null,null,null,null,"Ligne commencée",{"$f":"NOT(AND(ISBLANK(TAB_BUDGET[[#This Row],[Poste de dépense]]),ISBLANK(TAB_BUDGET[[#This Row],[Nature de la dépense]]),ISBLANK(TAB_BUDGET[[#This Row],[Financeur]]),ISBLANK(TAB_BUDGET[[#This Row],[Financement acquis ?]]),TAB_BUDGET[[#This Row],[Montant estimatif de la dépense (€)]]<=0,ISBLANK(TAB_BUDGET[[#This Row],[Montant estimatif de la dépense (€)]])))","v":false},"Ligne terminée",{"$f":"NOT(OR(ISBLANK(TAB_BUDGET[[#This Row],[Poste de dépense]]),ISBLANK(TAB_BUDGET[[#This Row],[Nature de la dépense]]),ISBLANK(TAB_BUDGET[[#This Row],[Financeur]]),ISBLANK(TAB_BUDGET[[#This Row],[Financement acquis ?]]),TAB_BUDGET[[#This Row],[Montant estimatif de la dépense (€)]]<=0,ISBLANK(TAB_BUDGET[[#This Row],[Montant estimatif de la dépense (€)]])))","v":false},true]
[null,null,null,null,null,null,{"$f":"IF(TAB_BUDGET[[#This Row],[Financeur]]<>\"\",VLOOKUP(TAB_BUDGET[[#This Row],[Financeur]],TAB_COFINANCEUR[[Code co-financeur]:[Etablissement]],2,FALSE),\"\")","v":""},{"$f":"TAB_BUDGET[[#This Row],[Montant estimatif de la dépense (€)]]-TAB_BUDGET[[#This Row],[PART 2024]]","v":0},null,{"$f":"BUDGET!$H47+BUDGET!$I47","v":0},null,null,null,null,null,null,null,null,null,null,null,null,null,null,null,null,null,null,null,null,null,null,null,null,null,null,null,null,null,null,null,null,null,null,null,null,null,null,null,null,null,null,"Ligne commencée",{"$f":"NOT(AND(ISBLANK(TAB_BUDGET[[#This Row],[Poste de dépense]]),ISBLANK(TAB_BUDGET[[#This Row],[Nature de la dépense]]),ISBLANK(TAB_BUDGET[[#This Row],[Financeur]]),ISBLANK(TAB_BUDGET[[#This Row],[Financement acquis ?]]),TAB_BUDGET[[#This Row],[Montant estimatif de la dépense (€)]]<=0,ISBLANK(TAB_BUDGET[[#This Row],[Montant estimatif de la dépense (€)]])))","v":false},"Ligne terminée",{"$f":"NOT(OR(ISBLANK(TAB_BUDGET[[#This Row],[Poste de dépense]]),ISBLANK(TAB_BUDGET[[#This Row],[Nature de la dépense]]),ISBLANK(TAB_BUDGET[[#This Row],[Financeur]]),ISBLANK(TAB_BUDGET[[#This Row],[Financement acquis ?]]),TAB_BUDGET[[#This Row],[Montant estimatif de la dépense (€)]]<=0,ISBLANK(TAB_BUDGET[[#This Row],[Montant estimatif de la dépense (€)]])))","v":false},true]
[null,null,null,null,null,null,{"$f":"IF(TAB_BUDGET[[#This Row],[Financeur]]<>\"\",VLOOKUP(TAB_BUDGET[[#This Row],[Financeur]],TAB_COFINANCEUR[[Code co-financeur]:[Etablissement]],2,FALSE),\"\")","v":""},{"$f":"TAB_BUDGET[[#This Row],[Montant estimatif de la dépense (€)]]-TAB_BUDGET[[#This Row],[PART 2024]]","v":0},null,{"$f":"BUDGET!$H48+BUDGET!$I48","v":0},null,null,null,null,null,null,null,null,null,null,null,null,null,null,null,null,null,null,null,null,null,null,null,null,null,null,null,null,null,null,null,null,null,null,null,null,null,null,null,null,null,null,"Ligne commencée",{"$f":"NOT(AND(ISBLANK(TAB_BUDGET[[#This Row],[Poste de dépense]]),ISBLANK(TAB_BUDGET[[#This Row],[Nature de la dépense]]),ISBLANK(TAB_BUDGET[[#This Row],[Financeur]]),ISBLANK(TAB_BUDGET[[#This Row],[Financement acquis ?]]),TAB_BUDGET[[#This Row],[Montant estimatif de la dépense (€)]]<=0,ISBLANK(TAB_BUDGET[[#This Row],[Montant estimatif de la dépense (€)]])))","v":false},"Ligne terminée",{"$f":"NOT(OR(ISBLANK(TAB_BUDGET[[#This Row],[Poste de dépense]]),ISBLANK(TAB_BUDGET[[#This Row],[Nature de la dépense]]),ISBLANK(TAB_BUDGET[[#This Row],[Financeur]]),ISBLANK(TAB_BUDGET[[#This Row],[Financement acquis ?]]),TAB_BUDGET[[#This Row],[Montant estimatif de la dépense (€)]]<=0,ISBLANK(TAB_BUDGET[[#This Row],[Montant estimatif de la dépense (€)]])))","v":false},true]
[null,null,null,null,null,null,{"$f":"IF(TAB_BUDGET[[#This Row],[Financeur]]<>\"\",VLOOKUP(TAB_BUDGET[[#This Row],[Financeur]],TAB_COFINANCEUR[[Code co-financeur]:[Etablissement]],2,FALSE),\"\")","v":""},{"$f":"TAB_BUDGET[[#This Row],[Montant estimatif de la dépense (€)]]-TAB_BUDGET[[#This Row],[PART 2024]]","v":0},null,{"$f":"BUDGET!$H49+BUDGET!$I49","v":0},null,null,null,null,null,null,null,null,null,null,null,null,null,null,null,null,null,null,null,null,null,null,null,null,null,null,null,null,null,null,null,null,null,null,null,null,null,null,null,null,null,null,"Ligne commencée",{"$f":"NOT(AND(ISBLANK(TAB_BUDGET[[#This Row],[Poste de dépense]]),ISBLANK(TAB_BUDGET[[#This Row],[Nature de la dépense]]),ISBLANK(TAB_BUDGET[[#This Row],[Financeur]]),ISBLANK(TAB_BUDGET[[#This Row],[Financement acquis ?]]),TAB_BUDGET[[#This Row],[Montant estimatif de la dépense (€)]]<=0,ISBLANK(TAB_BUDGET[[#This Row],[Montant estimatif de la dépense (€)]])))","v":false},"Ligne terminée",{"$f":"NOT(OR(ISBLANK(TAB_BUDGET[[#This Row],[Poste de dépense]]),ISBLANK(TAB_BUDGET[[#This Row],[Nature de la dépense]]),ISBLANK(TAB_BUDGET[[#This Row],[Financeur]]),ISBLANK(TAB_BUDGET[[#This Row],[Financement acquis ?]]),TAB_BUDGET[[#This Row],[Montant estimatif de la dépense (€)]]<=0,ISBLANK(TAB_BUDGET[[#This Row],[Montant estimatif de la dépense (€)]])))","v":false},true]
[null,null,null,null,null,null,{"$f":"IF(TAB_BUDGET[[#This Row],[Financeur]]<>\"\",VLOOKUP(TAB_BUDGET[[#This Row],[Financeur]],TAB_COFINANCEUR[[Code co-financeur]:[Etablissement]],2,FALSE),\"\")","v":""},{"$f":"TAB_BUDGET[[#This Row],[Montant estimatif de la dépense (€)]]-TAB_BUDGET[[#This Row],[PART 2024]]","v":0},null,{"$f":"BUDGET!$H50+BUDGET!$I50","v":0},null,null,null,null,null,null,null,null,null,null,null,null,null,null,null,null,null,null,null,null,null,null,null,null,null,null,null,null,null,null,null,null,null,null,null,null,null,null,null,null,null,null,"Ligne commencée",{"$f":"NOT(AND(ISBLANK(TAB_BUDGET[[#This Row],[Poste de dépense]]),ISBLANK(TAB_BUDGET[[#This Row],[Nature de la dépense]]),ISBLANK(TAB_BUDGET[[#This Row],[Financeur]]),ISBLANK(TAB_BUDGET[[#This Row],[Financement acquis ?]]),TAB_BUDGET[[#This Row],[Montant estimatif de la dépense (€)]]<=0,ISBLANK(TAB_BUDGET[[#This Row],[Montant estimatif de la dépense (€)]])))","v":false},"Ligne terminée",{"$f":"NOT(OR(ISBLANK(TAB_BUDGET[[#This Row],[Poste de dépense]]),ISBLANK(TAB_BUDGET[[#This Row],[Nature de la dépense]]),ISBLANK(TAB_BUDGET[[#This Row],[Financeur]]),ISBLANK(TAB_BUDGET[[#This Row],[Financement acquis ?]]),TAB_BUDGET[[#This Row],[Montant estimatif de la dépense (€)]]<=0,ISBLANK(TAB_BUDGET[[#This Row],[Montant estimatif de la dépense (€)]])))","v":false},true]
[null,null,null,null,null,null,{"$f":"IF(TAB_BUDGET[[#This Row],[Financeur]]<>\"\",VLOOKUP(TAB_BUDGET[[#This Row],[Financeur]],TAB_COFINANCEUR[[Code co-financeur]:[Etablissement]],2,FALSE),\"\")","v":""},{"$f":"TAB_BUDGET[[#This Row],[Montant estimatif de la dépense (€)]]-TAB_BUDGET[[#This Row],[PART 2024]]","v":0},null,{"$f":"BUDGET!$H51+BUDGET!$I51","v":0},null,null,null,null,null,null,null,null,null,null,null,null,null,null,null,null,null,null,null,null,null,null,null,null,null,null,null,null,null,null,null,null,null,null,null,null,null,null,null,null,null,null,"Ligne commencée",{"$f":"NOT(AND(ISBLANK(TAB_BUDGET[[#This Row],[Poste de dépense]]),ISBLANK(TAB_BUDGET[[#This Row],[Nature de la dépense]]),ISBLANK(TAB_BUDGET[[#This Row],[Financeur]]),ISBLANK(TAB_BUDGET[[#This Row],[Financement acquis ?]]),TAB_BUDGET[[#This Row],[Montant estimatif de la dépense (€)]]<=0,ISBLANK(TAB_BUDGET[[#This Row],[Montant estimatif de la dépense (€)]])))","v":false},"Ligne terminée",{"$f":"NOT(OR(ISBLANK(TAB_BUDGET[[#This Row],[Poste de dépense]]),ISBLANK(TAB_BUDGET[[#This Row],[Nature de la dépense]]),ISBLANK(TAB_BUDGET[[#This Row],[Financeur]]),ISBLANK(TAB_BUDGET[[#This Row],[Financement acquis ?]]),TAB_BUDGET[[#This Row],[Montant estimatif de la dépense (€)]]<=0,ISBLANK(TAB_BUDGET[[#This Row],[Montant estimatif de la dépense (€)]])))","v":false},true]
[null,null,null,null,null,null,{"$f":"IF(TAB_BUDGET[[#This Row],[Financeur]]<>\"\",VLOOKUP(TAB_BUDGET[[#This Row],[Financeur]],TAB_COFINANCEUR[[Code co-financeur]:[Etablissement]],2,FALSE),\"\")","v":""},{"$f":"TAB_BUDGET[[#This Row],[Montant estimatif de la dépense (€)]]-TAB_BUDGET[[#This Row],[PART 2024]]","v":0},null,{"$f":"BUDGET!$H52+BUDGET!$I52","v":0},null,null,null,null,null,null,null,null,null,null,null,null,null,null,null,null,null,null,null,null,null,null,null,null,null,null,null,null,null,null,null,null,null,null,null,null,null,null,null,null,null,null,"Ligne commencée",{"$f":"NOT(AND(ISBLANK(TAB_BUDGET[[#This Row],[Poste de dépense]]),ISBLANK(TAB_BUDGET[[#This Row],[Nature de la dépense]]),ISBLANK(TAB_BUDGET[[#This Row],[Financeur]]),ISBLANK(TAB_BUDGET[[#This Row],[Financement acquis ?]]),TAB_BUDGET[[#This Row],[Montant estimatif de la dépense (€)]]<=0,ISBLANK(TAB_BUDGET[[#This Row],[Montant estimatif de la dépense (€)]])))","v":false},"Ligne terminée",{"$f":"NOT(OR(ISBLANK(TAB_BUDGET[[#This Row],[Poste de dépense]]),ISBLANK(TAB_BUDGET[[#This Row],[Nature de la dépense]]),ISBLANK(TAB_BUDGET[[#This Row],[Financeur]]),ISBLANK(TAB_BUDGET[[#This Row],[Financement acquis ?]]),TAB_BUDGET[[#This Row],[Montant estimatif de la dépense (€)]]<=0,ISBLANK(TAB_BUDGET[[#This Row],[Montant estimatif de la dépense (€)]])))","v":false},true]
[null,null,null,null,null,null,{"$f":"IF(TAB_BUDGET[[#This Row],[Financeur]]<>\"\",VLOOKUP(TAB_BUDGET[[#This Row],[Financeur]],TAB_COFINANCEUR[[Code co-financeur]:[Etablissement]],2,FALSE),\"\")","v":""},{"$f":"TAB_BUDGET[[#This Row],[Montant estimatif de la dépense (€)]]-TAB_BUDGET[[#This Row],[PART 2024]]","v":0},null,{"$f":"BUDGET!$H53+BUDGET!$I53","v":0},null,null,null,null,null,null,null,null,null,null,null,null,null,null,null,null,null,null,null,null,null,null,null,null,null,null,null,null,null,null,null,null,null,null,null,null,null,null,null,null,null,null,"Ligne commencée",{"$f":"NOT(AND(ISBLANK(TAB_BUDGET[[#This Row],[Poste de dépense]]),ISBLANK(TAB_BUDGET[[#This Row],[Nature de la dépense]]),ISBLANK(TAB_BUDGET[[#This Row],[Financeur]]),ISBLANK(TAB_BUDGET[[#This Row],[Financement acquis ?]]),TAB_BUDGET[[#This Row],[Montant estimatif de la dépense (€)]]<=0,ISBLANK(TAB_BUDGET[[#This Row],[Montant estimatif de la dépense (€)]])))","v":false},"Ligne terminée",{"$f":"NOT(OR(ISBLANK(TAB_BUDGET[[#This Row],[Poste de dépense]]),ISBLANK(TAB_BUDGET[[#This Row],[Nature de la dépense]]),ISBLANK(TAB_BUDGET[[#This Row],[Financeur]]),ISBLANK(TAB_BUDGET[[#This Row],[Financement acquis ?]]),TAB_BUDGET[[#This Row],[Montant estimatif de la dépense (€)]]<=0,ISBLANK(TAB_BUDGET[[#This Row],[Montant estimatif de la dépense (€)]])))","v":false},true]
[null,null,null,null,null,null,{"$f":"IF(TAB_BUDGET[[#This Row],[Financeur]]<>\"\",VLOOKUP(TAB_BUDGET[[#This Row],[Financeur]],TAB_COFINANCEUR[[Code co-financeur]:[Etablissement]],2,FALSE),\"\")","v":""},{"$f":"TAB_BUDGET[[#This Row],[Montant estimatif de la dépense (€)]]-TAB_BUDGET[[#This Row],[PART 2024]]","v":0},null,{"$f":"BUDGET!$H54+BUDGET!$I54","v":0},null,null,null,null,null,null,null,null,null,null,null,null,null,null,null,null,null,null,null,null,null,null,null,null,null,null,null,null,null,null,null,null,null,null,null,null,null,null,null,null,null,null,"Ligne commencée",{"$f":"NOT(AND(ISBLANK(TAB_BUDGET[[#This Row],[Poste de dépense]]),ISBLANK(TAB_BUDGET[[#This Row],[Nature de la dépense]]),ISBLANK(TAB_BUDGET[[#This Row],[Financeur]]),ISBLANK(TAB_BUDGET[[#This Row],[Financement acquis ?]]),TAB_BUDGET[[#This Row],[Montant estimatif de la dépense (€)]]<=0,ISBLANK(TAB_BUDGET[[#This Row],[Montant estimatif de la dépense (€)]])))","v":false},"Ligne terminée",{"$f":"NOT(OR(ISBLANK(TAB_BUDGET[[#This Row],[Poste de dépense]]),ISBLANK(TAB_BUDGET[[#This Row],[Nature de la dépense]]),ISBLANK(TAB_BUDGET[[#This Row],[Financeur]]),ISBLANK(TAB_BUDGET[[#This Row],[Financement acquis ?]]),TAB_BUDGET[[#This Row],[Montant estimatif de la dépense (€)]]<=0,ISBLANK(TAB_BUDGET[[#This Row],[Montant estimatif de la dépense (€)]])))","v":false},true]
[null,null,null,null,null,null,{"$f":"IF(TAB_BUDGET[[#This Row],[Financeur]]<>\"\",VLOOKUP(TAB_BUDGET[[#This Row],[Financeur]],TAB_COFINANCEUR[[Code co-financeur]:[Etablissement]],2,FALSE),\"\")","v":""},{"$f":"TAB_BUDGET[[#This Row],[Montant estimatif de la dépense (€)]]-TAB_BUDGET[[#This Row],[PART 2024]]","v":0},null,{"$f":"BUDGET!$H55+BUDGET!$I55","v":0},null,null,null,null,null,null,null,null,null,null,null,null,null,null,null,null,null,null,null,null,null,null,null,null,null,null,null,null,null,null,null,null,null,null,null,null,null,null,null,null,null,null,"Ligne commencée",{"$f":"NOT(AND(ISBLANK(TAB_BUDGET[[#This Row],[Poste de dépense]]),ISBLANK(TAB_BUDGET[[#This Row],[Nature de la dépense]]),ISBLANK(TAB_BUDGET[[#This Row],[Financeur]]),ISBLANK(TAB_BUDGET[[#This Row],[Financement acquis ?]]),TAB_BUDGET[[#This Row],[Montant estimatif de la dépense (€)]]<=0,ISBLANK(TAB_BUDGET[[#This Row],[Montant estimatif de la dépense (€)]])))","v":false},"Ligne terminée",{"$f":"NOT(OR(ISBLANK(TAB_BUDGET[[#This Row],[Poste de dépense]]),ISBLANK(TAB_BUDGET[[#This Row],[Nature de la dépense]]),ISBLANK(TAB_BUDGET[[#This Row],[Financeur]]),ISBLANK(TAB_BUDGET[[#This Row],[Financement acquis ?]]),TAB_BUDGET[[#This Row],[Montant estimatif de la dépense (€)]]<=0,ISBLANK(TAB_BUDGET[[#This Row],[Montant estimatif de la dépense (€)]])))","v":false},true]
[null,null,null,null,null,null,{"$f":"IF(TAB_BUDGET[[#This Row],[Financeur]]<>\"\",VLOOKUP(TAB_BUDGET[[#This Row],[Financeur]],TAB_COFINANCEUR[[Code co-financeur]:[Etablissement]],2,FALSE),\"\")","v":""},{"$f":"TAB_BUDGET[[#This Row],[Montant estimatif de la dépense (€)]]-TAB_BUDGET[[#This Row],[PART 2024]]","v":0},null,{"$f":"BUDGET!$H56+BUDGET!$I56","v":0},null,null,null,null,null,null,null,null,null,null,null,null,null,null,null,null,null,null,null,null,null,null,null,null,null,null,null,null,null,null,null,null,null,null,null,null,null,null,null,null,null,null,"Ligne commencée",{"$f":"NOT(AND(ISBLANK(TAB_BUDGET[[#This Row],[Poste de dépense]]),ISBLANK(TAB_BUDGET[[#This Row],[Nature de la dépense]]),ISBLANK(TAB_BUDGET[[#This Row],[Financeur]]),ISBLANK(TAB_BUDGET[[#This Row],[Financement acquis ?]]),TAB_BUDGET[[#This Row],[Montant estimatif de la dépense (€)]]<=0,ISBLANK(TAB_BUDGET[[#This Row],[Montant estimatif de la dépense (€)]])))","v":false},"Ligne terminée",{"$f":"NOT(OR(ISBLANK(TAB_BUDGET[[#This Row],[Poste de dépense]]),ISBLANK(TAB_BUDGET[[#This Row],[Nature de la dépense]]),ISBLANK(TAB_BUDGET[[#This Row],[Financeur]]),ISBLANK(TAB_BUDGET[[#This Row],[Financement acquis ?]]),TAB_BUDGET[[#This Row],[Montant estimatif de la dépense (€)]]<=0,ISBLANK(TAB_BUDGET[[#This Row],[Montant estimatif de la dépense (€)]])))","v":false},true]
[null,null,null,null,null,null,{"$f":"IF(TAB_BUDGET[[#This Row],[Financeur]]<>\"\",VLOOKUP(TAB_BUDGET[[#This Row],[Financeur]],TAB_COFINANCEUR[[Code co-financeur]:[Etablissement]],2,FALSE),\"\")","v":""},{"$f":"TAB_BUDGET[[#This Row],[Montant estimatif de la dépense (€)]]-TAB_BUDGET[[#This Row],[PART 2024]]","v":0},null,{"$f":"BUDGET!$H57+BUDGET!$I57","v":0},null,null,null,null,null,null,null,null,null,null,null,null,null,null,null,null,null,null,null,null,null,null,null,null,null,null,null,null,null,null,null,null,null,null,null,null,null,null,null,null,null,null,"Ligne commencée",{"$f":"NOT(AND(ISBLANK(TAB_BUDGET[[#This Row],[Poste de dépense]]),ISBLANK(TAB_BUDGET[[#This Row],[Nature de la dépense]]),ISBLANK(TAB_BUDGET[[#This Row],[Financeur]]),ISBLANK(TAB_BUDGET[[#This Row],[Financement acquis ?]]),TAB_BUDGET[[#This Row],[Montant estimatif de la dépense (€)]]<=0,ISBLANK(TAB_BUDGET[[#This Row],[Montant estimatif de la dépense (€)]])))","v":false},"Ligne terminée",{"$f":"NOT(OR(ISBLANK(TAB_BUDGET[[#This Row],[Poste de dépense]]),ISBLANK(TAB_BUDGET[[#This Row],[Nature de la dépense]]),ISBLANK(TAB_BUDGET[[#This Row],[Financeur]]),ISBLANK(TAB_BUDGET[[#This Row],[Financement acquis ?]]),TAB_BUDGET[[#This Row],[Montant estimatif de la dépense (€)]]<=0,ISBLANK(TAB_BUDGET[[#This Row],[Montant estimatif de la dépense (€)]])))","v":false},true]
["Total",null,null,null,{"$f":"SUBTOTAL(109,TAB_BUDGET[Montant estimatif de la dépense (€)])","v":0},null,null,{"$f":"SUBTOTAL(109,BUDGET!$H$32:$H$57)","v":0},{"$f":"SUBTOTAL(109,BUDGET!$I$32:$I$57)","v":0},{"$f":"SUBTOTAL(109,BUDGET!$J$32:$J$57)","v":0}]
[]
["Budget sollicité au titre de l'AAP de la MSH de Bordeaux",{"$f":"SUMIF(TAB_BUDGET[Financeur],\"MSHBx (UBM)\",TAB_BUDGET[Montant estimatif de la dépense (€)])+SUMIF(TAB_BUDGET[Financeur],\"MSHBx (CNRS)\",TAB_BUDGET[Montant estimatif de la dépense (€)])","v":0}]
[]
[{"$f":"IF(COUNTIF(TAB_BUDGET[Financeur],\"MSHBx (CNRS)\")>0,\"Attention, le financement via des fonds CNRS ne sera accordé qu'à titre dérogatoire et justifié par des contraintes particulières du projet.\",\"\")","v":""}]
[]
["SYNTHESE DU BUDGET"]
[]
["Répartition par nature de dépense et partenaire cofinanceur"]
["Pour information (vous devez actualiser le tableau croisé dynamique pour mettre à jour la synthèse : menu contextuel \"Actualiser\")"]
["Somme de Montant estimatif de la dépense (€)","Cofinanceur"]
["Nature des dépenses","(vide)","Total général"]
["(vide)"]
["Total général"]
[]
[]
[]
[]
[]
[]
[]
[]
[]
[]
["Répartition par nature de dépense et partenaire établissement de gestion des fonds"]
["Pour information (vous devez actualiser le tableau croisé dynamique pour mettre à jour la synthèse : menu contextuel \"Actualiser\")"]
["Somme de Montant estimatif de la dépense (€)","Etablissement gestionnaire"]
["Nature des dépenses",null,"Total général"]
["(vide)"]
["Total général"]
[]
[]
[]
[]
[]
[]
[]
[]
[]
[]
["Financements acquis"]
["Pour information (vous devez actualiser le tableau croisé dynamique pour mettre à jour la synthèse : menu contextuel \"Actualiser\")"]
["Somme de Montant estimatif de la dépense (€)","Etablissement gestionnaire"]
["Nature des dépenses","Total général"]
["Total général"]

{"sheet":"PARAM","index":7,"n_rows":34,"n_cols":42,"rows_kept":34,"cut":false,"hidden":true,"merged":[]}
["STATUT",null,"ETABLISSEMENT",null,"CODE UNITE","ACRONYME UNITE","CODE ACRONYME","NOM UNITE","TUTELLES",null,"STATUT PARTICIPANT",null,"STATUT PARTICIPANT NON ACA",null,"NATURE DEPENSE",null,"Evaluateur","N°","Prénom","Nom","Mail","Champ Disciplinaire","Mots clés","Pays","Ville","Etablissement","Unité ou titre","Notes","Lien externe","Sexe","Tutelle ayant proposé le membre","Proposition principale","Coordonnées générales",null,"Note","Valeur_Num",null,"Valeur_Num","Note"]
["ENSEIGNANT CHERCHEUR UNIVERSITE",null,"Université Bordeaux-Montaigne (UBM)",null,"Autre",null,{"$f":"PARAM_UNITE[[#This Row],[CODE UNITE]]& \"-\" & PARAM_UNITE[[#This Row],[ACRONYME UNITE]]","v":"Autre-"},"A Préciser","A préciser",null,"ENSEIGNANT CHERCHEUR UNIVERSITE",null,"INGENIEUR (PRIVE)",null,"MISSIONS",null,{"$f":"PARAM_EVALUATEUR[[#This Row],[Prénom]]& \" \" & PARAM_EVALUATEUR[[#This Row],[Nom]]","v":"Stéphane Couralet"},4,"Stéphane","Couralet","stephane.couralet@u-bordeaux-montaigne.fr","Langue et civilisation coréennes","Le coréen contemporain : les classificateurs, la personne, la pluralité, la formalité","France","Bordeaux","Université Bordeaux-Montaigne","Directeur du Dpt des études coréennes, D2IA : Dynamiques, Interactions, Interculturalité Asiatiques - UMRU 24140","Université Bordeaux-Montaigne","https://orcid.org/0000-0001-7256-5519","M","Université Bordeaux-Montaigne","OUI",{"$f":"PARAM_EVALUATEUR[[#This Row],[Prénom]] & \" \" & PARAM_EVALUATEUR[[#This Row],[Nom]] & \", \" &PARAM_EVALUATEUR[[#This Row],[Etablissement]] & \", \" & PARAM_EVALUATEUR[[#This Row],[Unité ou titre]] & \" (\"&PARAM_EVALUATEUR[[#This Row],[Champ Disciplinaire]]&\") ;\"","v":"Stéphane Couralet, Université Bordeaux-Montaigne, Directeur du Dpt des études coréennes, D2IA : Dynamiques, Interactions, Interculturalité Asiatiques - UMRU 24140 (Langue et civilisation coréennes) ;"},null,"A+",20,null,null,"-"]
["CHERCHEUR CNRS",null,"Université de Bordeaux (UB)",null,"UMR 5114","COMPTRASEC",{"$f":"PARAM_UNITE[[#This Row],[CODE UNITE]]& \"-\" & PARAM_UNITE[[#This Row],[ACRONYME UNITE]]","v":"UMR 5114-COMPTRASEC"},"Centre de droit Comparé du Travail et de la Sécurité Sociale","CNRS UB ",null,"CHERCHEUR CNRS",null,"CHERCHEUR (PRIVE)",null,"FRAIS DE RECEPTION",null,{"$f":"PARAM_EVALUATEUR[[#This Row],[Prénom]]& \" \" & PARAM_EVALUATEUR[[#This Row],[Nom]]","v":"Olga Gille-Belova"},8,"Olga","Gille-Belova","Olga.Gille-Belova@u-bordeaux-montaigne.fr","\tÉtudes slaves et baltes","Russie, Belarus, Ukraine, élite politique, partis politiques, politique étrangère, politique migratoire, réformes de l'enseignement supérieur.","France","Bordeaux","Université Bordeaux-Montaigne","Directrice du Dpt des études slaves, CEMMC - Centre d'Etudes des Mondes Moderne et Contemporain - UR 2958","Université Bordeaux-Montaigne\nElites et les régimes politiques des pays post-soviétiques.\nLes réformes de l'enseignement supérieur dans les pays post-soviétiques. \nLes politiques migratoires des pays frontaliers de l'UE.","https://orcid.org/0000-0002-4268-8195","F","Université de Bordeaux","OUI",{"$f":"PARAM_EVALUATEUR[[#This Row],[Prénom]] & \" \" & PARAM_EVALUATEUR[[#This Row],[Nom]] & \", \" &PARAM_EVALUATEUR[[#This Row],[Etablissement]] & \", \" & PARAM_EVALUATEUR[[#This Row],[Unité ou titre]] & \" (\"&PARAM_EVALUATEUR[[#This Row],[Champ Disciplinaire]]&\") ;\"","v":"Olga Gille-Belova, Université Bordeaux-Montaigne, Directrice du Dpt des études slaves, CEMMC - Centre d'Etudes des Mondes Moderne et Contemporain - UR 2958 (\tÉtudes slaves et baltes) ;"},null,"A",18,null,10,"C"]
["ENSEIGNANT CHERCHEUR AUTRE ETABLISSEMENT",null,"Centre National de la recherche Scientifique (CNRS)",null,"UMR 5115","LAM ",{"$f":"PARAM_UNITE[[#This Row],[CODE UNITE]]& \"-\" & PARAM_UNITE[[#This Row],[ACRONYME UNITE]]","v":"UMR 5115-LAM "},"Les Afriques dans le Monde","CNRS UBM UB Sc Po ",null,"ENSEIGNANT CHERCHEUR AUTRE ETABLISSEMENT",null,"ENSEIGNANT CHERCHEUR (PRIVE)",null,"COMMUNICATION",null,{"$f":"PARAM_EVALUATEUR[[#This Row],[Prénom]]& \" \" & PARAM_EVALUATEUR[[#This Row],[Nom]]","v":"Sébastien Lechevalier"},6,"Sébastien","Lechevalier","sebastien.lechevalier@ehess.fr","Economie","Economie,\nSociétés inclusives et plurilingues","France","Aubervilliers","EHESS","Président de la fondation France-Japon, UMR 8173 Chine Corée Japon","directeur d'étude EHESS\nPrésident de la fondation France-Japon\nJapon et économies asiatiques","https://www.ehess.fr/fr/personne/s%C3%A9bastien-lechevalier","M","Université de Bordeaux","OUI",{"$f":"PARAM_EVALUATEUR[[#This Row],[Prénom]] & \" \" & PARAM_EVALUATEUR[[#This Row],[Nom]] & \", \" &PARAM_EVALUATEUR[[#This Row],[Etablissement]] & \", \" & PARAM_EVALUATEUR[[#This Row],[Unité ou titre]] & \" (\"&PARAM_EVALUATEUR[[#This Row],[Champ Disciplinaire]]&\") ;\"","v":"Sébastien Lechevalier, EHESS, Président de la fondation France-Japon, UMR 8173 Chine Corée Japon (Economie) ;"},null,"A-",16,null,11,"B-"]
["CHERCHEUR AUTRE ETABLISSEMENT",null,"Institut National Polytechnique de Bordeaux",null,"UMR 5116","CED",{"$f":"PARAM_UNITE[[#This Row],[CODE UNITE]]& \"-\" & PARAM_UNITE[[#This Row],[ACRONYME UNITE]]","v":"UMR 5116-CED"},"Centre Emile Durkheim","CNRS UB Sc Po ",null,"CHERCHEUR AUTRE ETABLISSEMENT",null,"TECHNICIEN (PRIVE)",null,"PRESTATION DE SERVICE",null,{"$f":"PARAM_EVALUATEUR[[#This Row],[Prénom]]& \" \" & PARAM_EVALUATEUR[[#This Row],[Nom]]","v":"Hélène Machinal"},2,"Hélène","Machinal","helene.machinal@univ-rennes2.fr","Littérature britannique 19e au 21e siècle","Littérature générale et études culturelles XIXe et XXe siècles dans la littérature anglophone, Roman policier, fantastique et science-fiction","France","Rennes","Université Rennes 2","Anglophonie : communautés, écritures - EA 1796","Université Rennes 2",null,"F","Université Bordeaux-Montaigne","OUI",{"$f":"PARAM_EVALUATEUR[[#This Row],[Prénom]] & \" \" & PARAM_EVALUATEUR[[#This Row],[Nom]] & \", \" &PARAM_EVALUATEUR[[#This Row],[Etablissement]] & \", \" & PARAM_EVALUATEUR[[#This Row],[Unité ou titre]] & \" (\"&PARAM_EVALUATEUR[[#This Row],[Champ Disciplinaire]]&\") ;\"","v":"Hélène Machinal, Université Rennes 2, Anglophonie : communautés, écritures - EA 1796 (Littérature britannique 19e au 21e siècle) ;"},null,"B+",14,null,12,"B"]
["BIATS UNIVERSITE",null,"Institut d'Etupes Politiques de Bordeaux (Sc Po Bordeaux)",null,"UMR 5199","PACEA",{"$f":"PARAM_UNITE[[#This Row],[CODE UNITE]]& \"-\" & PARAM_UNITE[[#This Row],[ACRONYME UNITE]]","v":"UMR 5199-PACEA"},"PACEA, de la Préhistoire à l’Actuel : Culture, Environnement et Anthropologie.","CNRS UB ",null,"BIATS UNIVERSITE",null,"AUTRE CDI (PRIVE)",null,"CONSOMMABLES",null,{"$f":"PARAM_EVALUATEUR[[#This Row],[Prénom]]& \" \" & PARAM_EVALUATEUR[[#This Row],[Nom]]","v":"Corinne Marache"},3,"Corinne","Marache","corinne.marache@u-bordeaux-montaigne.fr","Histoire contemporaine","Histoire économique et sociale, histoire rurale du XIXe et premier XXe siècle, Acteurs, processus et modalités de la « modernisation » des campagnes","France","Bordeaux","Université Bordeaux-Montaigne","CEMMC - Centre d'Etudes des Mondes Moderne et Contemporain - UR 2958","Université Bordeaux-Montaigne ","https://cemmc.hypotheses.org/files/2018/02/marache.pdf","F","Université Bordeaux-Montaigne","OUI",{"$f":"PARAM_EVALUATEUR[[#This Row],[Prénom]] & \" \" & PARAM_EVALUATEUR[[#This Row],[Nom]] & \", \" &PARAM_EVALUATEUR[[#This Row],[Etablissement]] & \", \" & PARAM_EVALUATEUR[[#This Row],[Unité ou titre]] & \" (\"&PARAM_EVALUATEUR[[#This Row],[Champ Disciplinaire]]&\") ;\"","v":"Corinne Marache, Université Bordeaux-Montaigne, CEMMC - Centre d'Etudes des Mondes Moderne et Contemporain - UR 2958 (Histoire contemporaine) ;"},null,"B",12,null,14,"B+"]
["IT CNRS",null,"INRIA",null,"UMR 5263","CLLE Montaigne",{"$f":"PARAM_UNITE[[#This Row],[CODE UNITE]]& \"-\" & PARAM_UNITE[[#This Row],[ACRONYME UNITE]]","v":"UMR 5263-CLLE Montaigne"},"Cognition, Langues, Langages, Ergonomie","CNRS UBM ",null,"IT CNRS",null,"AUTO-ENTREPRENEUR",null,"EDITION",null,{"$f":"PARAM_EVALUATEUR[[#This Row],[Prénom]]& \" \" & PARAM_EVALUATEUR[[#This Row],[Nom]]","v":"Xavier Prévost"},7,"Xavier","Prévost","xavier.prevost@u-bordeaux.fr","Droit et Sc Politiques","droit et les savoirs juridiques à la Renaissance\nHistoire de la pensée juridique, de la pensée politique et de l'enseignement du droit\nHistoire matérielle du droit\nHistoire du droit des affaires","France","Bordeaux","Université de Bordeaux","Institut de Recherches Montesquieu","Université de Bordeaux\nFaculté de Droit et Science Politique\nInstitut de Recherches Montesquieu","https://orcid.org/0000-0002-1399-2382","M","Université de Bordeaux","OUI",{"$f":"PARAM_EVALUATEUR[[#This Row],[Prénom]] & \" \" & PARAM_EVALUATEUR[[#This Row],[Nom]] & \", \" &PARAM_EVALUATEUR[[#This Row],[Etablissement]] & \", \" & PARAM_EVALUATEUR[[#This Row],[Unité ou titre]] & \" (\"&PARAM_EVALUATEUR[[#This Row],[Champ Disciplinaire]]&\") ;\"","v":"Xavier Prévost, Université de Bordeaux, Institut de Recherches Montesquieu (Droit et Sc Politiques) ;"},null,"B-",11,null,16,"A-"]
["CHERCHEUR/ENSEIGNANT CONTRACTUEL",null,"Institut national de la santé et de la recherche médicale (Inserm)",null,"UMR 5319","PASSAGES ",{"$f":"PARAM_UNITE[[#This Row],[CODE UNITE]]& \"-\" & PARAM_UNITE[[#This Row],[ACRONYME UNITE]]","v":"UMR 5319-PASSAGES "},"PASSAGES : reconfigurations des spatialités et des changements globaux","CNRS UBM ENSAPB ",null,"CHERCHEUR/ENSEIGNANT CONTRACTUEL",null,"APPRENTI",null,"TRADUCTION",null,{"$f":"PARAM_EVALUATEUR[[#This Row],[Prénom]]& \" \" & PARAM_EVALUATEUR[[#This Row],[Nom]]","v":" "},5,null,null,null,null,null,null,null,null,null,null,null,null,null,null,{"$f":"PARAM_EVALUATEUR[[#This Row],[Prénom]] & \" \" & PARAM_EVALUATEUR[[#This Row],[Nom]] & \", \" &PARAM_EVALUATEUR[[#This Row],[Etablissement]] & \", \" & PARAM_EVALUATEUR[[#This Row],[Unité ou titre]] & \" (\"&PARAM_EVALUATEUR[[#This Row],[Champ Disciplinaire]]&\") ;\"","v":" , ,  () ;"},null,"C",10,null,18,"A"]
["INGENIEUR CONTRACTUEL",null,"Université de Pau et des Pays de l'Adour (UPPA)",null,"UMR 5478","IKER",{"$f":"PARAM_UNITE[[#This Row],[CODE UNITE]]& \"-\" & PARAM_UNITE[[#This Row],[ACRONYME UNITE]]","v":"UMR 5478-IKER"},"Centre de Recherche sur la langue et les textes basques","CNRS UBM ",null,"INGENIEUR CONTRACTUEL",null,"STAGIAIRE",null,"GRATIFICATION DE STAGE",null,{"$f":"PARAM_EVALUATEUR[[#This Row],[Prénom]]& \" \" & PARAM_EVALUATEUR[[#This Row],[Nom]]","v":"Valerie Villa"},1,"Valerie","Villa","valeria.villa@univ-st-etienne.fr","sociolinguistique et didactique des langues","Minorités linguistiques, Pluralité linguistique, apprentissages et héritages linguistiques","France","Saint-Etienne","Université Jean Monnet","ECCLA - Études du Contemporain en Littératures, Langues, Arts","Université Jean Monnet, Saint Etienne","https://eclla.univ-st-etienne.fr/fr/presentation/membres/titulaires/villa-perez-valeria.html","F","Université Bordeaux-Montaigne","OUI",{"$f":"PARAM_EVALUATEUR[[#This Row],[Prénom]] & \" \" & PARAM_EVALUATEUR[[#This Row],[Nom]] & \", \" &PARAM_EVALUATEUR[[#This Row],[Etablissement]] & \", \" & PARAM_EVALUATEUR[[#This Row],[Unité ou titre]] & \" (\"&PARAM_EVALUATEUR[[#This Row],[Champ Disciplinaire]]&\") ;\"","v":"Valerie Villa, Université Jean Monnet, ECCLA - Études du Contemporain en Littératures, Langues, Arts (sociolinguistique et didactique des langues) ;"},null,"-",null,null,20,"A+"]
["APPRENTI / STAGIAIRE",null,"Autre (à préciser)",null,"UMR 5607","AUSONIUS ",{"$f":"PARAM_UNITE[[#This Row],[CODE UNITE]]& \"-\" & PARAM_UNITE[[#This Row],[ACRONYME UNITE]]","v":"UMR 5607-AUSONIUS "},"Institut de Recherche sur l’Antiquité et le Moyen Age","CNRS UBM ",null,"APPRENTI / STAGIAIRE",null,"AUTRE STATUT",null,"AUTRE",null,{"$f":"PARAM_EVALUATEUR[[#This Row],[Prénom]]& \" \" & PARAM_EVALUATEUR[[#This Row],[Nom]]","v":" "},9,null,null,null,null,null,"France",null,null,null,null,null,null,"Centre National de la Recherche Scientifique","OUI",{"$f":"PARAM_EVALUATEUR[[#This Row],[Prénom]] & \" \" & PARAM_EVALUATEUR[[#This Row],[Nom]] & \", \" &PARAM_EVALUATEUR[[#This Row],[Etablissement]] & \", \" & PARAM_EVALUATEUR[[#This Row],[Unité ou titre]] & \" (\"&PARAM_EVALUATEUR[[#This Row],[Champ Disciplinaire]]&\") ;\"","v":" , ,  () ;"}]
["AUTRE STATUT",null,null,null,"UMR 6034","ArcheoSciences bordeaux",{"$f":"PARAM_UNITE[[#This Row],[CODE UNITE]]& \"-\" & PARAM_UNITE[[#This Row],[ACRONYME UNITE]]","v":"UMR 6034-ArcheoSciences bordeaux"},"Archeosciences Bordeaux : Matériaux, Temps, Images et Sociétés","CNRS UBM ",null,"AUTRE STATUT",null,"STATUT INCONNU",null,null,null,{"$f":"PARAM_EVALUATEUR[[#This Row],[Prénom]]& \" \" & PARAM_EVALUATEUR[[#This Row],[Nom]]","v":" "},10,null,null,null,null,null,"France",null,null,null,null,null,null,"Centre National de la Recherche Scientifique","OUI",{"$f":"PARAM_EVALUATEUR[[#This Row],[Prénom]] & \" \" & PARAM_EVALUATEUR[[#This Row],[Nom]] & \", \" &PARAM_EVALUATEUR[[#This Row],[Etablissement]] & \", \" & PARAM_EVALUATEUR[[#This Row],[Unité ou titre]] & \" (\"&PARAM_EVALUATEUR[[#This Row],[Champ Disciplinaire]]&\") ;\"","v":" , ,  () ;"},null,null,null,null,null,null,null,10,"C"]
["STATUT INCONNU",null,null,null,"UMR 6060","BSE",{"$f":"PARAM_UNITE[[#This Row],[CODE UNITE]]& \"-\" & PARAM_UNITE[[#This Row],[ACRONYME UNITE]]","v":"UMR 6060-BSE"},"Bordeaux Sciences Economiques","CNRS UB ",null,"STATUT INCONNU",null,null,null,null,null,{"$f":"PARAM_EVALUATEUR[[#This Row],[Prénom]]& \" \" & PARAM_EVALUATEUR[[#This Row],[Nom]]","v":" "},11,null,null,null,null,null,"France",null,null,null,null,null,null,"Centre National de la Recherche Scientifique","OUI",{"$f":"PARAM_EVALUATEUR[[#This Row],[Prénom]] & \" \" & PARAM_EVALUATEUR[[#This Row],[Nom]] & \", \" &PARAM_EVALUATEUR[[#This Row],[Etablissement]] & \", \" & PARAM_EVALUATEUR[[#This Row],[Unité ou titre]] & \" (\"&PARAM_EVALUATEUR[[#This Row],[Champ Disciplinaire]]&\") ;\"","v":" , ,  () ;"},null,null,null,null,null,null,null,11,"B-"]
[null,null,null,null,"UMRU 24140","D2IA",{"$f":"PARAM_UNITE[[#This Row],[CODE UNITE]]& \"-\" & PARAM_UNITE[[#This Row],[ACRONYME UNITE]]","v":"UMRU 24140-D2IA"},"Dynamiques, Interactions, Interculturalités Asiatiques","UBM ",null,null,null,null,null,null,null,{"$f":"PARAM_EVALUATEUR[[#This Row],[Prénom]]& \" \" & PARAM_EVALUATEUR[[#This Row],[Nom]]","v":" "},12,null,null,null,null,null,"France",null,null,null,null,null,null,"Centre National de la Recherche Scientifique","OUI",{"$f":"PARAM_EVALUATEUR[[#This Row],[Prénom]] & \" \" & PARAM_EVALUATEUR[[#This Row],[Nom]] & \", \" &PARAM_EVALUATEUR[[#This Row],[Etablissement]] & \", \" & PARAM_EVALUATEUR[[#This Row],[Unité ou titre]] & \" (\"&PARAM_EVALUATEUR[[#This Row],[Champ Disciplinaire]]&\") ;\"","v":" , ,  () ;"},null,null,null,null,null,null,null,12,"B"]
[null,null,null,null,"UMRU 4574","SPH ",{"$f":"PARAM_UNITE[[#This Row],[CODE UNITE]]& \"-\" & PARAM_UNITE[[#This Row],[ACRONYME UNITE]]","v":"UMRU 4574-SPH "},"Sciences, Philosophie, Humanité","UBM UB ",null,null,null,null,null,null,null,null,null,null,null,null,null,null,null,null,null,null,null,null,null,null,null,null,null,null,null,null,null,null,null,14,"B+"]
[null,null,null,null,"UR 24141","ARTES",{"$f":"PARAM_UNITE[[#This Row],[CODE UNITE]]& \"-\" & PARAM_UNITE[[#This Row],[ACRONYME UNITE]]","v":"UR 24141-ARTES"},"ARTES","UBM ",null,null,null,null,null,null,null,null,null,null,null,null,null,null,null,null,null,null,null,null,null,null,null,null,null,null,null,null,null,null,null,16,"A-"]
[null,null,null,null,"UR 24142","Plurielles",{"$f":"PARAM_UNITE[[#This Row],[CODE UNITE]]& \"-\" & PARAM_UNITE[[#This Row],[ACRONYME UNITE]]","v":"UR 24142-Plurielles"},"Langues, Littératures, civilisations","UBM ",null,null,null,null,null,null,null,null,null,null,null,null,null,null,null,null,null,null,null,null,null,null,null,null,null,null,null,null,null,null,null,18,"A"]
[null,null,null,null,"UR 2958","CEMMC ",{"$f":"PARAM_UNITE[[#This Row],[CODE UNITE]]& \"-\" & PARAM_UNITE[[#This Row],[ACRONYME UNITE]]","v":"UR 2958-CEMMC "},"Centre d’Etudes des Mondes Modernes et Contemporains","UBM ",null,null,null,null,null,null,null,null,null,null,null,null,null,null,null,null,null,null,null,null,null,null,null,null,null,null,null,null,null,null,null,20,"A+"]
[null,null,null,null,"UR 3656","AMERIBER ",{"$f":"PARAM_UNITE[[#This Row],[CODE UNITE]]& \"-\" & PARAM_UNITE[[#This Row],[ACRONYME UNITE]]","v":"UR 3656-AMERIBER "},"Poétiques et Politiques des Pays Ibériques et Amérique Latine","UBM "]
[null,null,null,null,"UR 4028","TEXTES & CULTURES",{"$f":"PARAM_UNITE[[#This Row],[CODE UNITE]]& \"-\" & PARAM_UNITE[[#This Row],[ACRONYME UNITE]]","v":"UR 4028-TEXTES & CULTURES"},"Centre de Recherche Textes et Cultures - Université d'Artois",""]
[null,null,null,null,"UR 4139","Psychologie",{"$f":"PARAM_UNITE[[#This Row],[CODE UNITE]]& \"-\" & PARAM_UNITE[[#This Row],[ACRONYME UNITE]]","v":"UR 4139-Psychologie"},"Laboratoire de Psychologie","UB "]
[null,null,null,null,"UR 4141","LAB-E3D",{"$f":"PARAM_UNITE[[#This Row],[CODE UNITE]]& \"-\" & PARAM_UNITE[[#This Row],[ACRONYME UNITE]]","v":"UR 4141-LAB-E3D"},"Laboratoire d'Epistémologie et de didactiques disciplinaires, professionnelle et comparée de Bordeaux ","UB "]
[null,null,null,null,"UR 4190","IRGO",{"$f":"PARAM_UNITE[[#This Row],[CODE UNITE]]& \"-\" & PARAM_UNITE[[#This Row],[ACRONYME UNITE]]","v":"UR 4190-IRGO"},"Institut de Recherche en Gestion des Organisations","UB "]
[null,null,null,null,"UR 4191","IRDAP",{"$f":"PARAM_UNITE[[#This Row],[CODE UNITE]]& \"-\" & PARAM_UNITE[[#This Row],[ACRONYME UNITE]]","v":"UR 4191-IRDAP"},"Institut de Recherche en Droit des Affaires et du Patrimoine","UB "]
[null,null,null,null,"UR 4193","CRDEI",{"$f":"PARAM_UNITE[[#This Row],[CODE UNITE]]& \"-\" & PARAM_UNITE[[#This Row],[ACRONYME UNITE]]","v":"UR 4193-CRDEI"},"Centre de recherche et de documentation européennes et internationales","UB "]
[null,null,null,null,"UR 4196","CLIMAS ",{"$f":"PARAM_UNITE[[#This Row],[CODE UNITE]]& \"-\" & PARAM_UNITE[[#This Row],[ACRONYME UNITE]]","v":"UR 4196-CLIMAS "},"Cultures et Littératures des Mondes Anglophones","UBM "]
[null,null,null,null,"UR 4426","MICA ",{"$f":"PARAM_UNITE[[#This Row],[CODE UNITE]]& \"-\" & PARAM_UNITE[[#This Row],[ACRONYME UNITE]]","v":"UR 4426-MICA "},"Médiation, Information, Communication, Arts ","UBM "]
[null,null,null,null,"UR 4600","CERFAPS",{"$f":"PARAM_UNITE[[#This Row],[CODE UNITE]]& \"-\" & PARAM_UNITE[[#This Row],[ACRONYME UNITE]]","v":"UR 4600-CERFAPS"},"Centre Européen d'Etudes et de Recherche en droit de la Famille et des Personnes et de la Santé","UB "]
[null,null,null,null,"UR 4633","ISCJ",{"$f":"PARAM_UNITE[[#This Row],[CODE UNITE]]& \"-\" & PARAM_UNITE[[#This Row],[ACRONYME UNITE]]","v":"UR 4633-ISCJ"},"Institut des Sciences Criminelles et de la Justice","UB "]
[null,null,null,null,"UR 505","ILD",{"$f":"PARAM_UNITE[[#This Row],[CODE UNITE]]& \"-\" & PARAM_UNITE[[#This Row],[ACRONYME UNITE]]","v":"UR 505-ILD"},"Institut Léon Duguit","UB "]
[null,null,null,null,"UR 538","CRHA",{"$f":"PARAM_UNITE[[#This Row],[CODE UNITE]]& \"-\" & PARAM_UNITE[[#This Row],[ACRONYME UNITE]]","v":"UR 538-CRHA"},"Centre de recherche en histoire de l'art - F.-G. Pariset","UBM "]
[null,null,null,null,"UR 7434","IRM",{"$f":"PARAM_UNITE[[#This Row],[CODE UNITE]]& \"-\" & PARAM_UNITE[[#This Row],[ACRONYME UNITE]]","v":"UR 7434-IRM"},"Institut de Recherches Montesquieu","UB "]
[null,null,null,null,"UR 7436","CERCCLE",{"$f":"PARAM_UNITE[[#This Row],[CODE UNITE]]& \"-\" & PARAM_UNITE[[#This Row],[ACRONYME UNITE]]","v":"UR 7436-CERCCLE"},"Centre d'Etudes et de Recherches Comparatives sur les Constitutions, les Libertés et l'Etat","UB "]
[null,null,null,null,"UR 7437","LACES",{"$f":"PARAM_UNITE[[#This Row],[CODE UNITE]]& \"-\" & PARAM_UNITE[[#This Row],[ACRONYME UNITE]]","v":"UR 7437-LACES"},"Laboratoire Cultures - Education - Sociétés","UB "]
[null,null,null,null,"UR 7440","CeDS",{"$f":"PARAM_UNITE[[#This Row],[CODE UNITE]]& \"-\" & PARAM_UNITE[[#This Row],[ACRONYME UNITE]]","v":"UR 7440-CeDS"},"Culture Et Diffusion des Savoirs","UB "]